{"text_format":"1","workbook":"xlsx","n_sheets":5,"sheets":["Cover","Contents","1. F-Factor summary","2. Individual fire start info","3. Systems and Audit"],"not_rendered":{"charts":0,"images":2,"macros":1,"external_links":2,"defined_names":97,"comments":0,"pivot_tables":0},"unopened":[],"bounds":{"document_bytes":16777216,"sheet_cells":100000,"rows_first":2000,"rows_last":500,"rows_between":2000,"halvings":0,"cell_chars":16384,"cell_head_chars":4096},"cells_cut":0,"cells_raw":0,"read":"whole","date_system":"1900"}

{"sheet":"Cover","index":0,"n_rows":47,"n_cols":6,"rows_kept":47,"cut":false,"hidden":false,"merged":[[10,0,11,8],[12,0,12,8],[15,0,15,8],[14,0,14,8],[13,0,13,8],[46,1,46,5],[40,1,40,2],[40,3,40,6],[44,1,44,5],[45,1,45,5],[36,1,36,2],[36,3,36,6],[39,1,39,2],[39,3,39,6],[17,0,17,8],[35,1,35,2],[35,3,35,6],[30,2,30,4],[28,2,28,4],[24,2,24,4],[24,0,24,1],[26,2,26,4],[29,2,29,4],[18,0,18,8],[19,0,19,8],[20,0,23,8]]}
[]
[]
[]
[]
[]
[]
[]
["Distribution Network Service Provider"]
["Fire start report"]
[]
["This template is to be used by a DNSP to provide a fire start report to the AER in accordance with section 5 of the F-factor Order in Council.  "]
[]
["Colour coding of input sheets:"]
["Dark blue = AER headings"]
["Grey = AER instructions"]
["Yellow = Input cells"]
["Light orange = Automatically-generated cells"]
[]
["Leave coloured cells blank if no information exists - PLEASE DO NOT ENTER TEXT unless specifically requested to do so."]
["All dollar amounts are to be unrounded, and in nominal terms."]
[]
[]
[]
[]
["DNSP:",null,"AusNet Services"]
[]
["DNSP - trading name:"]
[]
["DNSP - Australian business number: ",null,"91 064 651 118"]
[]
["Reporting year:",null,"2016/17"]
[]
[]
[]
[]
["Business address","Address",null,"Level 31, 2 Southbank Boulevard"]
[null,"Suburb",null,"Southbank"]
[null,null,"State","Victoria","Postcode",3006]
[]
["Postal address","Address",null,"Locked Bag 14051 MCMC"]
[null,"Suburb",null,"Melbourne"]
[null,null,"State","Victoria","Postcode",8001]
[]
[]
["Contact name/s","Phillip Bryant"]
["Contact phone/s","03 9695 6219"]
["Contact email address/s","phillip.bryant@ausnetservices.com.au"]

{"sheet":"Contents","index":1,"n_rows":12,"n_cols":8,"rows_kept":12,"cut":false,"hidden":false,"merged":[[2,4,2,10]]}
[" "]
[]
[null,null,null,null,"Electricity Distribution Network Service Provider    F-factor Reporting Template"]
[]
[null,null,null,null,null,null,null,"Table of contents"]
[]
[]
[null,null,"Cover sheet",null,null,"2. Fire start report"]
[]
[]
[]
[null,null,"1. F-factor summary",null,null,"3. Systems and Audit"]

{"sheet":"1. F-Factor summary","index":2,"n_rows":147,"n_cols":15,"rows_kept":147,"cut":false,"hidden":false,"merged":[[26,1,26,2],[8,1,12,1],[16,1,20,1],[5,1,5,2],[3,6,3,8],[4,6,4,8],[5,6,5,8],[13,1,15,1],[6,3,7,3]]}
[null,{"$f":"IF(Cover!C25=\"\",\"[DNSP Name]\", Cover!C25)","v":"AusNet Services"},"IRU target:",{"$f":"IF(SUM(K6:O6)=0,\"\",SUM(K6:O6))","v":247.7},null,null,null,null,null,null,"AusNet Services","CitiPower","Jemena","Powercor","United Energy"]
[null,"F-factor data reporting","IRU amount:",{"$f":"IF(SUM('2. Individual fire start info'!U40:U151)=0,\"\",SUM('2. Individual fire start info'!U40:U151))","v":148.69999999999999},null,null,null,null,null,"2016/17",247.7,3.4,9.6999999999999993,468,22.3]
[null,{"$f":"IF(Cover!C31=\"\",\"[Year]\",Cover!C31)","v":"2016/17"},"Revenue adjustment:",{"$f":"IF(OR(D1=\"\",D2=\"\"),\"\",15000*(D1-D2))","v":1485000},null,null,null,null,null,"2017/18",247.7,3.4,9.6999999999999993,468,22.3]
[null,null,null,null,null,null,null,null,null,"2018/19",247.7,3.4,9.6999999999999993,468,22.3]
[null,"Table 1: Summary of total fire starts",null,null,null,null,null,null,null,"2019/20",221.1,3.4,9.6999999999999993,412.8,22.3]
[null,"This is a summary of data in worksheet \"2. Fire Start Report\"",null,null,null,null,null,null,null,null,{"$f":"IF(OR($B3=\"[Year]\",$B1=\"[DNSP Name]\",$B1<>K1),\"\",LOOKUP($B3,$J2:$J5,K2:K5))","v":247.7},{"$f":"IF(OR($B3=\"[Year]\",$B1=\"[DNSP Name]\",$B1<>L1),\"\",LOOKUP($B3,$J2:$J5,L2:L5))","v":""},{"$f":"IF(OR($B3=\"[Year]\",$B1=\"[DNSP Name]\",$B1<>M1),\"\",LOOKUP($B3,$J2:$J5,M2:M5))","v":""},{"$f":"IF(OR($B3=\"[Year]\",$B1=\"[DNSP Name]\",$B1<>N1),\"\",LOOKUP($B3,$J2:$J5,N2:N5))","v":""},{"$f":"IF(OR($B3=\"[Year]\",$B1=\"[DNSP Name]\",$B1<>O1),\"\",LOOKUP($B3,$J2:$J5,O2:O5))","v":""}]
[null,null,null,"Total fires by category"]
[null,"Fire Start by Category","Fire Start by Asset"]
[null,"Asset failures resulting in grass/vegetation fire","Pole and cross arm failure or Pole and cross arm fire",1,null,null,null,null,null,{"$f":"B9&\" : \"&C9","v":"Asset failures resulting in grass/vegetation fire : Pole and cross arm failure or Pole and cross arm fire"}]
[null,null,"Oil-filled plant",0,null,null,null,null,null,{"$f":"B9&\" : \"&C10","v":"Asset failures resulting in grass/vegetation fire : Oil-filled plant"}]
[null,null,"HV Fuse",5,null,null,null,null,null,{"$f":"B9&\" : \"&C11","v":"Asset failures resulting in grass/vegetation fire : HV Fuse"}]
[null,null,"Other Assets",28,null,null,null,null,null,{"$f":"B9&\" : \"&C12","v":"Asset failures resulting in grass/vegetation fire : Other Assets"}]
[null,null,"Any fire triggered by any asset failure caused by Lightning",0,null,null,null,null,null,{"$f":"B9&\" : \"&C13","v":"Asset failures resulting in grass/vegetation fire : Any fire triggered by any asset failure caused by Lightning"}]
[null,"Grass/vegetation fires from assets (non-asset failures)","Fire starts in grass/vegetation resulting from animal contact with network assets",11,null,null,null,null,null,{"$f":"B14&\" : \"&C14","v":"Grass/vegetation fires from assets (non-asset failures) : Fire starts in grass/vegetation resulting from animal contact with network assets"}]
[null,null,"Fire starts in grass/vegetation resulting from trees contacting network assets",10,null,null,null,null,null,{"$f":"B14&\" : \"&C15","v":"Grass/vegetation fires from assets (non-asset failures) : Fire starts in grass/vegetation resulting from trees contacting network assets"}]
[null,null,"Fire starts in grass/vegetation resulting from other causes (vehicle strikes, vandalism etc)",4,null,null,null,null,null,{"$f":"B14&\" : \"&C16","v":"Grass/vegetation fires from assets (non-asset failures) : Fire starts in grass/vegetation resulting from other causes (vehicle strikes, vandalism etc)"}]
[null,"Asset failures resulting in asset fire (no grass/vegetation fire)","Pole and cross arm fire (including ‘smouldering’ or ‘smoke’)",2,null,null,null,null,null,{"$f":"B17&\" : \"&C17","v":"Asset failures resulting in asset fire (no grass/vegetation fire) : Pole and cross arm fire (including ‘smouldering’ or ‘smoke’)"}]
[null,null,"Oil-filled plant fire",1,null,null,null,null,null,{"$f":"B17&\" : \"&C18","v":"Asset failures resulting in asset fire (no grass/vegetation fire) : Oil-filled plant fire"}]
[null,null,"HV Fuse Failure (including ‘hang-ups’ and ‘candling’)",24,null,null,null,null,null,{"$f":"B17&\" : \"&C19","v":"Asset failures resulting in asset fire (no grass/vegetation fire) : HV Fuse Failure (including ‘hang-ups’ and ‘candling’)"}]
[null,null,"Other Assets",20,null,null,null,null,null,{"$f":"B17&\" : \"&C20","v":"Asset failures resulting in asset fire (no grass/vegetation fire) : Other Assets"}]
[null,null,"Any fire triggered by any asset failure caused by Lightning",0,null,null,null,null,null,{"$f":"B17&\" : \"&C21","v":"Asset failures resulting in asset fire (no grass/vegetation fire) : Any fire triggered by any asset failure caused by Lightning"}]
[null,"Any other Fire Start","Any additional fires, caused by any asset failure, not reported to the ESV and required to be reported by the f-factor Order",4,null,null,null,null,null,{"$f":"B22&\" : \"&C22","v":"Any other Fire Start : Any additional fires, caused by any asset failure, not reported to the ESV and required to be reported by the f-factor Order"}]
[null,"Total",null,{"$f":"SUM(D9:D22)","v":110}]
[]
[]
[null,"Table 2: Summary of total fire starts by F factor Order definition"]
[null,"This is a summary of data in worksheet \"2. Fire Start Report\""]
[null,"Kind of Fire Start by definition of fire start under clause 5 of F-factor Order","Total fires by cause",null,null,null,null,null,null,"Overhead conductors"]
[null,"Started in or originated from a distribution system",{"$f":"COUNTIF('2. Individual fire start info'!$N$40:$N$152,'1. F-Factor summary'!$B29)","v":0},null,null,null,null,null,null," - overhead conductor (bare; aluminium core steel reinforced)"]
[null,"Started by any tree, or part of a tree, falling upon or coming into contact with a distribution system",{"$f":"COUNTIF('2. Individual fire start info'!$N$40:$N$152,'1. F-Factor summary'!$B30)","v":12},null,null,null,null,null,null," - overhead conductor (bare; all aluminium conductor)"]
[null,"Started by any person, bird, reptile or other animal coming into contact with a distribution system",{"$f":"COUNTIF('2. Individual fire start info'!$N$40:$N$152,'1. F-Factor summary'!$B31)","v":13},null,null,null,null,null,null," - overhead conductor (bare; copper)"]
[null,"Started by lightning striking a distribution system or a part of a distribution system ",{"$f":"COUNTIF('2. Individual fire start info'!$N$40:$N$152,'1. F-Factor summary'!$B32)","v":0},null,null,null,null,null,null," - overhead conductor (bare; steel)"]
[null,"Started by any other thing forming part of or coming into contact with a distribution system",{"$f":"COUNTIF('2. Individual fire start info'!$N$40:$N$152,'1. F-Factor summary'!$B33)","v":4},null,null,null,null,null,null," - overhead conductor (ABC)"]
[null,"Otherwise started by a distribution system",{"$f":"COUNTIF('2. Individual fire start info'!$N$40:$N$152,'1. F-Factor summary'!$B34)","v":81},null,null,null,null,null,null," - overhead conductor (covered uninsulated)"]
[null,"Total",{"$f":"SUM(C29:C34)","v":110},null,null,null,null,null,null," - overhead conductor (insulated)"]
[null,null,null,null,null,null,null,null,null,"Service lines"]
[null,null,null,null,null,null,null,null,null," - overhead service conductor (residential)"]
[null,null,null,null,null,null,null,null,null," - overhead service conductor (commercial / industrial)"]
[null,null,null,null,null,null,null,null,null," - overhead service conductor (subdivision / construction)"]
[null,null,null,null,null,null,null,null,null," - overhead service conductor (other)"]
[null,null,null,null,null,null,null,null,null," - underground service cable (residential)"]
[null,null,null,null,null,null,null,null,null," - underground service cable (commercial / industrial)"]
[null,null,null,null,null,null,null,null,null," - underground service cable (subdivision / construction)"]
[null,null,null,null,null,null,null,null,null," - underground service cable (other)"]
[null,null,null,null,null,null,null,null,null,"Underground cables"]
[null,null,null,null,null,null,null,null,null," - underground cable"]
[null,null,null,null,null,null,null,null,null," - underground communications cable"]
[null,null,null,null,null,null,null,null,null,"Poles"]
[null,null,null,null,null,null,null,null,null," - pole (concrete)"]
[null,null,null,null,null,null,null,null,null," - pole (steel)"]
[null,null,null,null,null,null,null,null,null," - pole (wood)"]
[null,null,null,null,null,null,null,null,null,"Crossarms"]
[null,null,null,null,null,null,null,null,null," - crossarm (wood)"]
[null,null,null,null,null,null,null,null,null," - crossarm (steel)"]
[null,null,null,null,null,null,null,null,null," - crossarm (other)"]
[null,null,null,null,null,null,null,null,null,"Overhead assets"]
[null,null,null,null,null,null,null,null,null," - capacity balancing units"]
[null,null,null,null,null,null,null,null,null," - connector / termination"]
[null,null,null,null,null,null,null,null,null," - dropper / bridge"]
[null,null,null,null,null,null,null,null,null," - guy wire"]
[null,null,null,null,null,null,null,null,null," - insulator tie wires / connections"]
[null,null,null,null,null,null,null,null,null," - insulators"]
[null,null,null,null,null,null,null,null,null," - tower"]
[null,null,null,null,null,null,null,null,null," - traction lines"]
[null,null,null,null,null,null,null,null,null,"Underground assets"]
[null,null,null,null,null,null,null,null,null," - LV pillar"]
[null,null,null,null,null,null,null,null,null," - services pit"]
[null,null,null,null,null,null,null,null,null,"Transformers"]
[null,null,null,null,null,null,null,null,null," - transformer (pole mounted)"]
[null,null,null,null,null,null,null,null,null," - transformer (kiosk mounted)"]
[null,null,null,null,null,null,null,null,null," - transformer (ground outdoor mounted)"]
[null,null,null,null,null,null,null,null,null," - transformer (indoor chamber mounted)"]
[null,null,null,null,null,null,null,null,null," - transformer (any other type)"]
[null,null,null,null,null,null,null,null,null," - measurement transformer (current transformer)"]
[null,null,null,null,null,null,null,null,null," - measurement transformer (voltage transformer)"]
[null,null,null,null,null,null,null,null,null," - measurement transformer (capacitive voltage transformer)"]
[null,null,null,null,null,null,null,null,null,"Fuses and switchgear"]
[null,null,null,null,null,null,null,null,null," - fuse (boric acid)"]
[null,null,null,null,null,null,null,null,null," - fuse (EDO fuse)"]
[null,null,null,null,null,null,null,null,null," - fuse (Fault Tamer)"]
[null,null,null,null,null,null,null,null,null," - fuse (powder filled)"]
[null,null,null,null,null,null,null,null,null," - fuse (any other type)"]
[null,null,null,null,null,null,null,null,null," - circuit breaker"]
[null,null,null,null,null,null,null,null,null," - switch (disconnector/isolator)"]
[null,null,null,null,null,null,null,null,null," - switch (earth)"]
[null,null,null,null,null,null,null,null,null," - switch (FuseSaver)"]
[null,null,null,null,null,null,null,null,null," - switch (any other type)"]
[null,null,null,null,null,null,null,null,null,"SCADA, network control and protection systems"]
[null,null,null,null,null,null,null,null,null," - audio frequency load controller (AFLC)"]
[null,null,null,null,null,null,null,null,null," - arc suppresion coil"]
[null,null,null,null,null,null,null,null,null," - automatic circuit recloser (ACR)"]
[null,null,null,null,null,null,null,null,null," - communications linear assets"]
[null,null,null,null,null,null,null,null,null," - communications network assets"]
[null,null,null,null,null,null,null,null,null," - communications site infrastructure"]
[null,null,null,null,null,null,null,null,null," - field devices"]
[null,null,null,null,null,null,null,null,null," - local network wiring assets"]
[null,null,null,null,null,null,null,null,null," - master station assets"]
[null,null,null,null,null,null,null,null,null," - neutral earthing resistor"]
[null,null,null,null,null,null,null,null,null," - oil-filled circuit recloser (OCR)"]
[null,null,null,null,null,null,null,null,null," - rapid earth fault current limiter (REFCL)"]
[null,null,null,null,null,null,null,null,null," - surge diverter"]
[null,null,null,null,null,null,null,null,null," - voltage regulator"]
[null,null,null,null,null,null,null,null,null,"Public lighting"]
[null,null,null,null,null,null,null,null,null," - brackets (major road)"]
[null,null,null,null,null,null,null,null,null," - brackets (minor road)"]
[null,null,null,null,null,null,null,null,null," - lamps (major road)"]
[null,null,null,null,null,null,null,null,null," - lamps (minor road)"]
[null,null,null,null,null,null,null,null,null," - luminaries (major road)"]
[null,null,null,null,null,null,null,null,null," - luminaries (minor road)"]
[null,null,null,null,null,null,null,null,null," - poles / columns (major road)"]
[null,null,null,null,null,null,null,null,null," - poles / columns (minor road)"]
[null,null,null,null,null,null,null,null,null,"Other "]
[null,null,null,null,null,null,null,null,null," - connection box"]
[null,null,null,null,null,null,null,null,null," - earth / earthing"]
[]
[]
[null,null,null,null,null,null,null,null,null,"Extra low voltage AC (<50V)"]
[null,null,null,null,null,null,null,null,null,"Low voltage AC (<1kV)"]
[null,null,null,null,null,null,null,null,null,"2.2kV AC"]
[null,null,null,null,null,null,null,null,null,"6.6kV AC"]
[null,null,null,null,null,null,null,null,null,"11kV AC"]
[null,null,null,null,null,null,null,null,null,"12.7kV AC (SWER)"]
[null,null,null,null,null,null,null,null,null,"22kV AC"]
[null,null,null,null,null,null,null,null,null,"33kV AC"]
[null,null,null,null,null,null,null,null,null,"66kV AC"]
[null,null,null,null,null,null,null,null,null,"132kV AC"]
[null,null,null,null,null,null,null,null,null,"220kV AC"]
[null,null,null,null,null,null,null,null,null,"330kV AC"]
[null,null,null,null,null,null,null,null,null,"500kV AC"]
[null,null,null,null,null,null,null,null,null,"Extra low voltage DC (<120V ripple free)"]
[null,null,null,null,null,null,null,null,null,"Low voltage DC (<1.5kV)"]
[null,null,null,null,null,null,null,null,null,"600V DC"]
[null,null,null,null,null,null,null,null,null,"1500V DC"]
[null,null,null,null,null,null,null,null,null,"Earthing cable"]
[]
[]
[null,null,null,null,null,null,null,null,null,"single wire earth return (SWER)"]
[null,null,null,null,null,null,null,null,null,"single phase"]
[null,null,null,null,null,null,null,null,null,"two phase"]
[null,null,null,null,null,null,null,null,null,"three phase"]
[]
[]
[null,null,null,null,null,null,null,null,null,"Negligible: no ground fire"]
[null,null,null,null,null,null,null,null,null,"Localised: less than 10 sq.m"]
[null,null,null,null,null,null,null,null,null,"Small: 10 - 1000 aq.m"]
[null,null,null,null,null,null,null,null,null,"Medium: 1000 sq.m - 10 ha"]
[null,null,null,null,null,null,null,null,null,"Large: more than 10 ha"]

{"sheet":"2. Individual fire start info","index":3,"n_rows":149,"n_cols":28,"rows_kept":149,"cut":false,"hidden":false,"merged":[[23,1,23,20],[19,1,19,20],[26,1,26,20],[21,1,21,23],[29,1,29,22],[37,10,37,13],[25,1,25,20],[37,21,37,23],[35,1,35,4],[37,14,37,19],[37,2,37,9],[30,1,30,20],[28,1,28,23],[31,1,31,20],[3,24,3,26],[4,24,4,26],[5,24,5,26],[7,1,7,23],[27,1,27,20],[11,1,11,2],[13,1,13,11],[22,1,22,23],[24,1,24,23],[14,1,14,22],[15,1,15,20],[16,1,16,20],[17,1,17,20],[20,1,20,20],[9,1,9,23],[18,1,18,20]]}
[null,{"$f":"IF(Cover!C25=\"\",\"[DNSP Name]\", Cover!C25)","v":"AusNet Services"}]
[null,"F-factor data reporting"]
[null,{"$f":"IF(Cover!C31=\"\",\"[Year]\",Cover!C31)","v":"2016/17"}]
[]
[]
[null,"Instructions:"]
[]
[null,{"$f":"\"Enter into this worksheet fire start data, from any IT system, which have been recorded by \"&IF(Cover!C25=\"\",\"[DNSP Name]\", Cover!C25)&\". Note that fire starts must be in accordance with the definition of a fire start in the Order In Council.\"","v":"Enter into this worksheet fire start data, from any IT system, which have been recorded by AusNet Services. Note that fire starts must be in accordance with the definition of a fire start in the Order In Council."}]
[]
[null,"\"Fire\" should be interpreted using its common meaning and can be defined as a process in which substances combine chemically with oxygen from the air and typically give out bright light, heat and smoke. A fire should be recorded where there is evidence of smoking, charring, scorching, burning or any other evidence that a fire had occurred.  "]
[]
[null,{"$f":"IF(Cover!C25=\"\",\"[DNSP Name] must provide:\", CONCATENATE(Cover!C25,\" must provide:\"))","v":"AusNet Services must provide:"}]
[]
[null,"Table 3 - Individual Fire Starts"]
[null,"   (1) Date - dd/mm/yyyy"]
[null,"   (2) Time - if known, the 24-hour time of the fire start hh:mm"]
[null,"   (3) Latitude and longitude of the fire start as decimal coordinates"]
[null,"   (4) Asset number for the asset nearest the fire start"]
[null,{"$f":"\"   (5) Feeder ID for the polyphase overhead line or underground cable nearest the fire start in the \"&B1&\" network\"","v":"   (5) Feeder ID for the polyphase overhead line or underground cable nearest the fire start in the AusNet Services network"}]
[null,"   (6) Voltage on the line in which the fire start occurred (note: this may not be the nearest polyphase overhead line)"]
[null,"   (7) Network categorisation - CBD, Urban, Rural Long or Rural Short"]
[null,"   (8) Fire start by category in accordance with ESV quarterly reporting categories"]
[null,"   (9) Asset type of primary asset causing fire in accordance with OSIRIS asset categories"]
[null,"   (10) Where the asset involved in the fire is a transformer or an overhead or underground line, provide the phase, or phases, of the line or transformer"]
[null,"   (11) Kind of fire start in accordance with categories specified in Clause 5 of the F-factor Order-In-Council"]
[null,"   (12) Rating of High Bushfire Risk Area (HBRA) or Low Bushfire Risk Are (LBRA) as assigned by CFA & MFB under s.80 of the Electricity Safety Act"]
[null,"   (13) Identify the location of the fire start in accordance with the categories specified in Clause 11(b) of the F-factor Order-In-Council"]
[null,"   (14) Has the CFA declared a fire danger period under the Country Fire Authority Act 1958 - Y/N?"]
[null,"   (15) Where a fire danger period has been declared, provide the daily CFA fire danger rating (or leave blank if the area has not yet been declared)"]
[null,{"$f":"\"   (16) \"&IF(Cover!C25=\"\",\"[DNSP Name]\", Cover!C25)&\"'s record number for the incident\"","v":"   (16) AusNet Services's record number for the incident"}]
[null,"   (17) ESV's OSIRIS reference number for the incident"]
[null,"   (18) Free text description of the fault containing relevant comments from field reports "]
[]
[]
[]
[null,"Table 3: Individual Fire Starts"]
[]
[null,"Number","Fire starts",null,null,null,null,null,null,null,"Fire Type",null,null,null,"Risk Factors",null,null,null,null,null,"IRU \namount"]
[null,null,"Date 1","Time 2","Latitude 3","Longitude 3","ID of \nnearest \nasset 4","ID of nearest \npolyphase \nline 5","Voltage of line in which \nfire start \noccurred 6","Network categorisation 7","Fire start by \nESV category 8","Fire start by\nasset type 9","Phase(s) of \nline or \ntransformer 10","Kind of fire start as per Clause 5\nof F-factor Order-In-Council 11","HBRA or \nLBRA 12","Location \narea 13","Location\nmultiplier","Fire danger period declared? 14","Fire \ndanger \nrating 15","Danger multiplier","Product of multipliers","DNSP record number 16","OSIRIS \n(ESV) reference \nnumber 17","Fault \ndescription 18",null,"By Category","By Asset","By Order"]
[null,1,"2016-07-01T08:28:00",42552.352777777778,-38.033244018366901,145.481911987057,501136,"OFR23","Low voltage AC (<1kV)","RURAL LONG","Asset failures resulting in asset fire (no grass/vegetation fire) : Other Assets"," - crossarm (wood)","single phase","Otherwise started by a distribution system","HBRA","HBRA only",{"$f":"IF(P40=\"\",\"\",IF(P40=\"LBRA only\",0.2,IF(P40=\"HBRA only\",1,IF(P40=\"within electric line construction area\",19.8,IF(P40=\"within area delineated on plan LEGL./16-354\",4.6,\"\")))))","v":1},"NO","No forecast",{"$f":"IF(S40=\"\",\"\",IF(S40=\"No forecast\",0.1,IF(R40=\"N\",0.1,IF(S40=\"Low-moderate\",0.2,IF(S40=\"High\",0.5,IF(S40=\"Very high\",1,IF(S40=\"Severe\",2,IF(S40=\"Extreme\",3.5,5))))))))","v":0.1},{"$f":"IF(OR(Q40=\"\",T40=\"\"),\"\",IF(AND(P40=\"within electric line construction area\",S40=\"No forecast\"),1,Q40*T40))","v":0.1},222754,"20160704SPN_02","LV crossarm burnt in half on Substation pole.",null,"Asset failures resulting in asset fire (no grass/vegetation fire)","Other Assets","Otherwise started by a distribution system"]
[null,{"$f":"B40+1","v":2},"2016-07-06T23:43:00",42557.988194444442,-37.810876735730297,145.25444617361401,1221996,"RWT32","Low voltage AC (<1kV)","URBAN","Asset failures resulting in asset fire (no grass/vegetation fire) : Other Assets"," - lamps (major road)","single phase","Otherwise started by a distribution system","LBRA","LBRA only",{"$f":"IF(P41=\"\",\"\",IF(P41=\"LBRA only\",0.2,IF(P41=\"HBRA only\",1,IF(P41=\"within electric line construction area\",19.8,IF(P41=\"within area delineated on plan LEGL./16-354\",4.6,\"\")))))","v":0.2},"NO","No forecast",{"$f":"IF(S41=\"\",\"\",IF(S41=\"No forecast\",0.1,IF(R41=\"N\",0.1,IF(S41=\"Low-moderate\",0.2,IF(S41=\"High\",0.5,IF(S41=\"Very high\",1,IF(S41=\"Severe\",2,IF(S41=\"Extreme\",3.5,5))))))))","v":0.1},{"$f":"IF(OR(Q41=\"\",T41=\"\"),\"\",IF(AND(P41=\"within electric line construction area\",S41=\"No forecast\"),1,Q41*T41))","v":2.0000000000000004E-2},222834,"20160707SPN_01","Reported street light fire at LIS 1221996. Isolated s/l. 150 Watt HPS; Crew isolated the S/L.",null,"Asset failures resulting in asset fire (no grass/vegetation fire)","Other Assets","Otherwise started by a distribution system"]
[null,{"$f":"B41+1","v":3},"2016-07-16T17:18:00",42567.720833333333,-38.180448002459002,146.56188502181701,2607388,"TGN11","22kV AC","RURAL SHORT","Grass/vegetation fires from assets (non-asset failures) : Fire starts in grass/vegetation resulting from animal contact with network assets"," - switch (disconnector/isolator)","three phase","Started by any person, bird, reptile or other animal coming into contact with a distribution system","HBRA","HBRA only",1,"NO","No forecast",0.1,0.1,222995,"20160725SPN_02","Burnt grass area at base of switch TN212 in road reserve. Removed wire from the top of the switch which it seemed birds had used to make a nest.",null,"Grass/vegetation fires from assets (non-asset failures)","Fire starts in grass/vegetation resulting from animal contact with network assets","Started by any person, bird, reptile or other animal coming into contact with a distribution system"]
[null,4,"2016-07-21T13:53:00",42572.578472222223,-37.480424988661099,145.011809017075,931594,"KLO14","22kV AC","RURAL LONG","Asset failures resulting in asset fire (no grass/vegetation fire) : HV Fuse Failure (including ‘hang-ups’ and ‘candling’)"," - fuse (EDO fuse)","single phase","Otherwise started by a distribution system","HBRA","within area delineated on plan LEGL./16-354",4.5999999999999996,"NO","No forecast",0.1,0.45999999999999996,223145,"20160725SPN_03","Candled WØ  EDO Fuse. NCF Conc pole LIS # 931594.",null,"Asset failures resulting in asset fire (no grass/vegetation fire)","HV Fuse Failure (including ‘hang-ups’ and ‘candling’)","Otherwise started by a distribution system"]
[null,5,"2016-08-02T20:07:53",42584.838807870372,-37.665636015926601,145.017755016808,911897,"EPG31","22kV AC","URBAN","Asset failures resulting in asset fire (no grass/vegetation fire) : Pole and cross arm fire (including ‘smouldering’ or ‘smoke’)"," - crossarm (wood)","three phase","Otherwise started by a distribution system","LBRA","LBRA only",0.2,"NO","No forecast",0.1,2.0000000000000004E-2,223367,"20160805SPN_01","Replaced HV X-arm which burnt due to tracking of conductor to X-arm.  Fire restricted to end insulator and X-arm. No other damage.",null,"Asset failures resulting in asset fire (no grass/vegetation fire)","Pole and cross arm fire (including ‘smouldering’ or ‘smoke’)","Otherwise started by a distribution system"]
[null,6,"2016-08-05T07:31:00",42587.313194444447,-37.046010326734702,145.298459860733,4705147,"SMR5","12.7kV AC (SWER)","RURAL LONG","Asset failures resulting in asset fire (no grass/vegetation fire) : HV Fuse Failure (including ‘hang-ups’ and ‘candling’)"," - fuse (EDO fuse)","single wire earth return (SWER)","Otherwise started by a distribution system","HBRA","within area delineated on plan LEGL./16-354",4.5999999999999996,"NO","No forecast",0.1,0.45999999999999996,223470,"20160805SPN_02","Fault crew found candled fuse Boric acid on SE273, replaced fuse and supply was restored.",null,"Asset failures resulting in asset fire (no grass/vegetation fire)","HV Fuse Failure (including ‘hang-ups’ and ‘candling’)","Otherwise started by a distribution system"]
[null,7,"2016-08-07T12:00:00",42589.5,-38.078902140807998,145.283755982635,523879,"CRE23","Low voltage AC (<1kV)","URBAN","Asset failures resulting in asset fire (no grass/vegetation fire) : Other Assets"," - lamps (minor road)","single phase","Otherwise started by a distribution system","LBRA","LBRA only",0.2,"NO","No forecast",0.1,2.0000000000000004E-2,223502,"20160808SPN_02","Street light head burnt out. Concrete street light column with pit at base of pole.",null,"Asset failures resulting in asset fire (no grass/vegetation fire)","Other Assets","Otherwise started by a distribution system"]
[null,8,"2016-08-11T09:44:00",42593.405555555553,-38.21155501973,145.75344800711801,2718897,"WGL13","22kV AC","RURAL SHORT","Asset failures resulting in asset fire (no grass/vegetation fire) : HV Fuse Failure (including ‘hang-ups’ and ‘candling’)"," - fuse (EDO fuse)","single phase","Otherwise started by a distribution system","HBRA","HBRA only",1,"NO","No forecast",0.1,0.1,223599,"20160812SPN_01","HV fuse had candled/burnt",null,"Asset failures resulting in asset fire (no grass/vegetation fire)","HV Fuse Failure (including ‘hang-ups’ and ‘candling’)","Otherwise started by a distribution system"]
[null,9,"2016-08-17T06:39:09",42599.277187500003,-38.079541016110099,145.27434898689401,505476,"CRE23","22kV AC","URBAN","Any other Fire Start : Any additional fires, caused by any asset failure, not reported to the ESV and required to be reported by the f-factor Order"," - fuse (EDO fuse)","three phase","Started by any tree, or part of a tree, falling upon or coming into contact with a distribution system","LBRA","LBRA only",0.2,"NO","No forecast",0.1,2.0000000000000004E-2,223700,"20160817SPN_01","3 blown fuses found at Sth Gipp Thompson S/S. Transformer found unserviceable with large oil leak.  The substation had exploded. There had been a previous fault when a tree had fallen through the conductors causing a jolt on the transformer which may have caused transformer failure.",null,"Any other Fire Start","Any additional fires, caused by any asset failure, not reported to the ESV and required to be reported by the f-factor Order","Started by any tree, or part of a tree, falling upon or coming into contact with a distribution system"]
[null,10,"2016-08-18T20:21:00",42600.847916666666,-37.874984990488898,148.00497702090399,1902429,"BDL41","22kV AC","RURAL LONG","Asset failures resulting in asset fire (no grass/vegetation fire) : HV Fuse Failure (including ‘hang-ups’ and ‘candling’)"," - fuse (EDO fuse)","three phase","Otherwise started by a distribution system","LBRA","LBRA only",0.2,"NO","No forecast",0.1,2.0000000000000004E-2,223771,"20160819SPN_01","Field crew reports on arrival @ LIS #1902429 fuse tube burnt in half. Suspect candled. no ground fire.",null,"Asset failures resulting in asset fire (no grass/vegetation fire)","HV Fuse Failure (including ‘hang-ups’ and ‘candling’)","Otherwise started by a distribution system"]
[null,11,"2016-08-22T17:30:00",42604.729166666664,-38.190317653919003,147.27185721062301,5744973,"SLE31","Low voltage AC (<1kV)","RURAL LONG","Asset failures resulting in grass/vegetation fire : Other Assets"," - connection box","three phase","Otherwise started by a distribution system","HBRA","within area delineated on plan LEGL./16-354",4.5999999999999996,"NO","No forecast",0.1,0.45999999999999996,223842,"20160823SPN_01","Ground fire reported at base of pole.Fire area of 1 sq. metre. Found burnt out Krone Box.",null,"Asset failures resulting in grass/vegetation fire","Other Assets","Otherwise started by a distribution system"]
[null,12,"2016-08-25T15:02:56",42607.62703703704,-37.755570023894798,145.68483699775999,1407925,"WYK23","22kV AC","RURAL SHORT","Asset failures resulting in grass/vegetation fire : Other Assets"," - overhead conductor (ABC)","three phase","Otherwise started by a distribution system","HBRA","within electric line construction area",19.8,"NO","No forecast",0.1,1,223925,"20160829SPN_01","HVABC joint failed in Alpine St, Warburton. Report received of fire on the ground. DAO advised. Failure occurred during REFCL testing.",null,"Asset failures resulting in grass/vegetation fire","Other Assets","Otherwise started by a distribution system"]
[null,13,"2016-08-27T13:19:00",42609.554861111108,-37.860307008637697,148.07997101323201,1902844,"NLA34","Low voltage AC (<1kV)","RURAL SHORT","Asset failures resulting in asset fire (no grass/vegetation fire) : Other Assets"," - connection box","three phase","Otherwise started by a distribution system","LBRA","LBRA only",0.2,"NO","No forecast",0.1,2.0000000000000004E-2,223960,"20160829SPN_02","Per CFA Pole Fire. 3 phase mains pole box caught fire and melted on pole scorching the pole. Melting plastic fell to the ground, no fire started on the ground.",null,"Asset failures resulting in asset fire (no grass/vegetation fire)","Other Assets","Otherwise started by a distribution system"]
[null,14,"2016-08-29T17:08:35",42611.71429398148,-38.184400334267103,146.561925963449,2604178,"TGN-MFA","66kV AC","UNCLASSIFIED","Grass/vegetation fires from assets (non-asset failures) : Fire starts in grass/vegetation resulting from animal contact with network assets"," - overhead conductor (bare; aluminium core steel reinforced)","three phase","Started by any person, bird, reptile or other animal coming into contact with a distribution system","LBRA","LBRA only",0.2,"NO","No forecast",0.1,2.0000000000000004E-2,223979,"20160830SPN_01","Fault crew called to fire at base of concrete HV pole 2604178 on the Traralgon Maffra Road, Traralgon. Grass fire area burnt was approximately 25 x 15 metres in size. 66kV feeder had 1 reclose, on supply when the crew arrived. 2 burnt crows found at base of pole. Bird flashover.",null,"Grass/vegetation fires from assets (non-asset failures)","Fire starts in grass/vegetation resulting from animal contact with network assets","Started by any person, bird, reptile or other animal coming into contact with a distribution system"]
[null,15,"2016-09-02T04:25:00",42615.184027777781,-38.246285983398501,145.56674499864999,513602,"LLG11","Low voltage AC (<1kV)","RURAL SHORT","Asset failures resulting in asset fire (no grass/vegetation fire) : Other Assets"," - connection box","three phase","Otherwise started by a distribution system","HBRA","within area delineated on plan LEGL./16-354",4.5999999999999996,"NO","No forecast",0.1,0.45999999999999996,224049,"20160906SPN_01","Emergency Authorities reported an alleged pole fire. When AusNet Services' fault crew arrived the CFA were on site. Allegedly only the LV leads and 3 phase fuse box (FOLCB) was burnt. The pole was a HV/LV wood substation pole.",null,"Asset failures resulting in asset fire (no grass/vegetation fire)","Other Assets","Otherwise started by a distribution system"]
[null,16,"2016-09-05T11:55:00",42618.496527777781,-36.101147012429699,146.826637995027,5217235,"WO13","22kV AC","RURAL SHORT","Asset failures resulting in asset fire (no grass/vegetation fire) : HV Fuse Failure (including ‘hang-ups’ and ‘candling’)"," - fuse (EDO fuse)","single phase","Otherwise started by a distribution system","HBRA","HBRA only",1,"NO","No forecast",0.1,0.1,224089,"20160906SPN_02","Crew found a HV fuse hung up and candled PF fuse tube. The fuse and fuse tube were replaced. lis 5217235.",null,"Asset failures resulting in asset fire (no grass/vegetation fire)","HV Fuse Failure (including ‘hang-ups’ and ‘candling’)","Otherwise started by a distribution system"]
[null,17,"2016-09-14T02:59:44",42627.124814814815,-36.296149014478097,146.26554302426601,5696900,"WN2","22kV AC","RURAL LONG","Asset failures resulting in asset fire (no grass/vegetation fire) : HV Fuse Failure (including ‘hang-ups’ and ‘candling’)"," - fuse (EDO fuse)","three phase","Otherwise started by a distribution system","HBRA","within area delineated on plan LEGL./16-354",4.5999999999999996,"NO","No forecast",0.1,0.45999999999999996,224271,"20160914SPN_01","On patrolling the line to locate a fault the crew found a HV fuse had hung up and candled.",null,"Asset failures resulting in asset fire (no grass/vegetation fire)","HV Fuse Failure (including ‘hang-ups’ and ‘candling’)","Otherwise started by a distribution system"]
[null,18,"2016-09-15T11:48:00",42628.491666666669,-36.124080802204702,146.891623273265,5808844,"WO32","Low voltage AC (<1kV)","URBAN","Asset failures resulting in grass/vegetation fire : Other Assets"," - LV pillar","three phase","Otherwise started by a distribution system","LBRA","LBRA only",0.2,"NO","No forecast",0.1,2.0000000000000004E-2,224298,"20160922SPN_02","Fault Crew attended a reported pillar on fire in Ethel St Wodonga. A small area of grass was burnt surrounding the pillar due to the flames/arc coming out of the base of the pillar. A 200 Amp switch failed, believed to have been caused by moisture ingress.\n\n",null,"Asset failures resulting in grass/vegetation fire","Other Assets","Otherwise started by a distribution system"]
[null,19,"2016-09-24T21:26:15",42637.893229166664,-37.896688000300003,145.23435003132201,1309556,"BRA21","Low voltage AC (<1kV)","URBAN","Asset failures resulting in asset fire (no grass/vegetation fire) : Other Assets"," - lamps (minor road)","single phase","Otherwise started by a distribution system","LBRA","LBRA only",0.2,"NO","No forecast",0.1,2.0000000000000004E-2,224480,"20160926SPN_01","Street light head South side burnt out. VicRoads advised a street light head on fire 200 metres east of Stud Road in Ferntree Gully Road Scoresby. Lis number 1309623. No fire on pole or ground.",null,"Asset failures resulting in asset fire (no grass/vegetation fire)","Other Assets","Otherwise started by a distribution system"]
[null,20,"2016-09-29T18:25:00",42642.767361111109,-36.4566266623251,146.46087691201799,5740818,"WN5","22kV AC","RURAL LONG","Asset failures resulting in asset fire (no grass/vegetation fire) : HV Fuse Failure (including ‘hang-ups’ and ‘candling’)"," - fuse (EDO fuse)","single phase","Otherwise started by a distribution system","HBRA","within area delineated on plan LEGL./16-354",4.5999999999999996,"NO","No forecast",0.1,0.45999999999999996,224584,"20161003SPN_01","Fault crew attended reports of dim lights by customers. found a candling  HV BA 6V fuse on the transformer, pole 5740818. No fire evident",null,"Asset failures resulting in asset fire (no grass/vegetation fire)","HV Fuse Failure (including ‘hang-ups’ and ‘candling’)","Otherwise started by a distribution system"]
[null,21,"2016-10-02T15:32:02",42645.647245370368,-37.8831366407817,145.506039133353,408364,"BGE22","12.7kV AC (SWER)","RURAL SHORT","Grass/vegetation fires from assets (non-asset failures) : Fire starts in grass/vegetation resulting from trees contacting network assets"," - overhead conductor (bare; steel)","single wire earth return (SWER)","Started by any tree, or part of a tree, falling upon or coming into contact with a distribution system","HBRA","within area delineated on plan LEGL./16-354",4.5999999999999996,"NO","No forecast",0.1,0.45999999999999996,224591,"20161003SPN_03","Storm winds and rains caused an approx. 25 metre tall skinny stringy bark tree to fall on onto 3/12 steel 12.7 kV S.W.E.R overhead conductor  to break and fault current suspected to have caused sparks and hot molten metal to ignite and start a small grass fire. ACR tripped to lockout.",null,"Grass/vegetation fires from assets (non-asset failures)","Fire starts in grass/vegetation resulting from trees contacting network assets","Started by any tree, or part of a tree, falling upon or coming into contact with a distribution system"]
[null,22,"2016-10-09T14:54:27",42652.621145833335,-37.726053735046001,145.14718141653699,921845,"ELM34","22kV AC","URBAN","Any other Fire Start : Any additional fires, caused by any asset failure, not reported to the ESV and required to be reported by the f-factor Order"," - overhead conductor (bare; all aluminium conductor)","three phase","Started by any tree, or part of a tree, falling upon or coming into contact with a distribution system","LBRA","LBRA only",0.2,"NO","No forecast",0.1,2.0000000000000004E-2,224666,"20161010SPN_04","Large tree located on Parkland opposite 674 Main Rd, Eltham  fell over onto open bare 22kV and 415V conductors. This caused the Feeder to trip. Tree fell due to high wind gusts at the time and the ground being very wet from recent rain. A FOLCB caught fire at LIS 921845 but it was extinguished and no ground fire occurred.",null,"Any other Fire Start","Any additional fires, caused by any asset failure, not reported to the ESV and required to be reported by the f-factor Order","Started by any tree, or part of a tree, falling upon or coming into contact with a distribution system"]
[null,23,"2016-10-09T16:37:00",42652.692361111112,-38.0442550097683,145.49641103228501,503441,"PHM33","22kV AC","RURAL SHORT","Grass/vegetation fires from assets (non-asset failures) : Fire starts in grass/vegetation resulting from trees contacting network assets"," - fuse (boric acid)","single phase","Started by any tree, or part of a tree, falling upon or coming into contact with a distribution system","HBRA","HBRA only",1,"NO","No forecast",0.1,0.1,224711,"20161014SPN_01","Large Tree approx. 15m away from powerline was >20m tall and fell across HV Wires. Fire and burn damage to tree in immediate area, but no significant damage to the ground or any property or livestock.",null,"Grass/vegetation fires from assets (non-asset failures)","Fire starts in grass/vegetation resulting from trees contacting network assets","Started by any tree, or part of a tree, falling upon or coming into contact with a distribution system"]
[null,24,"2016-10-12T03:25:00",42655.142361111109,-37.746210990485402,145.653564015461,1407535,"WYK23","Low voltage AC (<1kV)","RURAL SHORT","Asset failures resulting in grass/vegetation fire : Other Assets"," - connection box","three phase","Otherwise started by a distribution system","HBRA","within electric line construction area",19.8,"NO","No forecast",0.1,1,224695,"20161012SPN_01","Small fire in vicinity at base of pole, LV Krone fuse box melted on substation pole caused by a loose LV connection on LV leads to Krone fuse box.",null,"Asset failures resulting in grass/vegetation fire","Other Assets","Otherwise started by a distribution system"]
[null,25,"2016-10-12T15:48:00",42655.658333333333,-36.460390990928701,146.50479998659401,5110573,"WN5","22kV AC","RURAL LONG","Asset failures resulting in asset fire (no grass/vegetation fire) : HV Fuse Failure (including ‘hang-ups’ and ‘candling’)"," - fuse (boric acid)","three phase","Otherwise started by a distribution system","HBRA","within area delineated on plan LEGL./16-354",4.5999999999999996,"NO","No forecast",0.1,0.45999999999999996,224710,"20161014SPN_02","Cust reports crackling/buzzing sound from transformer in front of property. A 6 Amp Boric Acid fuse on the roadside was hung-up and candled.",null,"Asset failures resulting in asset fire (no grass/vegetation fire)","HV Fuse Failure (including ‘hang-ups’ and ‘candling’)","Otherwise started by a distribution system"]
[null,26,"2016-10-16T18:07:05",42659.754918981482,-38.029880372206001,145.31510077103201,504819,"NRN14","22kV AC","URBAN","Asset failures resulting in asset fire (no grass/vegetation fire) : Pole and cross arm fire (including ‘smouldering’ or ‘smoke’)"," - crossarm (wood)","three phase","Otherwise started by a distribution system","LBRA","LBRA only",0.2,"NO","No forecast",0.1,2.0000000000000004E-2,224761,"20161017SPN_02","CEOT received a report from the CFA of a fire on LV crossarm @ LIS #504819. The HV crossarm was found broken and the HV overhead conductor fell into LV conductor. HV fuse operated, BW3356. No ground fire occurred. No HVI damage occurred to customers' properties.",null,"Asset failures resulting in asset fire (no grass/vegetation fire)","Pole and cross arm fire (including ‘smouldering’ or ‘smoke’)","Otherwise started by a distribution system"]
[null,27,"2016-10-16T22:35:51",42659.941562499997,-37.767250986922299,145.47106497147101,1014014,"WYK12","22kV AC","RURAL SHORT","Grass/vegetation fires from assets (non-asset failures) : Fire starts in grass/vegetation resulting from trees contacting network assets"," - overhead conductor (bare; all aluminium conductor)","three phase","Started by any tree, or part of a tree, falling upon or coming into contact with a distribution system","HBRA","within area delineated on plan LEGL./16-354",4.5999999999999996,"NO","No forecast",0.1,0.45999999999999996,224759,"20161017SPN_01","An AusNet Services' fault crew attended an incident and advised CEOT that a small ground fire was observed around AusNet Services' assets ex HV Switch LD463. The fire size was less than 10m x 1m in size. A tall gum tree fell onto the HV overhead line and caused a HV conductor to break and fall to the ground.",null,"Grass/vegetation fires from assets (non-asset failures)","Fire starts in grass/vegetation resulting from trees contacting network assets","Started by any tree, or part of a tree, falling upon or coming into contact with a distribution system"]
[null,28,"2016-10-21T05:47:00",42664.240972222222,-38.453312017427301,145.26163999398401,2805771,"PHI13","22kV AC","URBAN","Asset failures resulting in asset fire (no grass/vegetation fire) : HV Fuse Failure (including ‘hang-ups’ and ‘candling’)"," - fuse (boric acid)","three phase","Otherwise started by a distribution system","LBRA","LBRA only",0.2,"NO","No forecast",0.1,2.0000000000000004E-2,224867,"20161024SPN_02","HV fuse at substation has hung-up/candled. The substation fuse was a 6A Boric Acid fuse that had candled, no fire, but well on the way to burning out.",null,"Asset failures resulting in asset fire (no grass/vegetation fire)","HV Fuse Failure (including ‘hang-ups’ and ‘candling’)","Otherwise started by a distribution system"]
[null,29,"2016-10-30T09:35:00",42673.399305555555,-38.078198993954302,147.10138198232701,2502968,"SLE32","Low voltage AC (<1kV)","RURAL SHORT","Asset failures resulting in grass/vegetation fire : Other Assets"," - connection box","three phase","Otherwise started by a distribution system","LBRA","LBRA only",0.2,"NO","No forecast",0.1,2.0000000000000004E-2,224998,"20161102SPN_01","On arrival the fault truck noticed a 100 amp fused mains box that was fed from the line side of the transformer isolators was melting/burning and proceeded to isolate it.",null,"Asset failures resulting in grass/vegetation fire","Other Assets","Otherwise started by a distribution system"]
[null,30,"2016-11-02T17:57:00",42676.747916666667,-38.061137460280698,145.32182193102,5639730,"HPK14","Low voltage AC (<1kV)","URBAN","Grass/vegetation fires from assets (non-asset failures) : Fire starts in grass/vegetation resulting from other causes (vehicle strikes, vandalism etc)"," - LV pillar","three phase","Started by any other thing forming part of or coming into contact with a distribution system","LBRA","LBRA only",0.2,"NO","Low-moderate",0.2,4.0000000000000008E-2,225023,"20161104SPN_02","VicPol reported that a car had run into an electrical pillar. The driver lost control of his Holden Commodore ute and hit the LV paralleling pillar 5664082 and the car caught fire as a result. The car caught fire because one of the phases came in contact with the metal frame of the car.",null,"Grass/vegetation fires from assets (non-asset failures)","Fire starts in grass/vegetation resulting from other causes (vehicle strikes, vandalism etc)","Started by any other thing forming part of or coming into contact with a distribution system"]
[null,31,"2016-11-04T17:05:42",42678.712291666663,-37.630811981150799,145.096590980456,917429,"DRN11","22kV AC","RURAL SHORT","Asset failures resulting in grass/vegetation fire : Other Assets"," - overhead conductor (ABC)","three phase","Otherwise started by a distribution system","HBRA","HBRA only",1,"NO","High",0.5,0.5,225045,"20161107SPN_01","Between Lis 917428 and 917429 - HV ABC failed/blown midspan  - small grass fire reported underneath. Fire damage 30cm/30cm to wood chip garden bed underneath HV ABC.",null,"Asset failures resulting in grass/vegetation fire","Other Assets","Otherwise started by a distribution system"]
[null,32,"2016-11-06T22:59:42",42680.958124999997,-38.150772606663303,146.78235654073401,5643747,"TGN41","Low voltage AC (<1kV)","RURAL LONG","Asset failures resulting in asset fire (no grass/vegetation fire) : Other Assets"," - lamps (major road)","single phase","Otherwise started by a distribution system","LBRA","LBRA only",0.2,"NO","Low-moderate",0.2,4.0000000000000008E-2,225046,"20161107SPN_02","Streetlight head was reported on fire out the front of 93 Princes st Rosedale. Exact cause uncertain but it is common for such older street lights to fail due to either faulty ignitors with repetitive striking or failed plastic clad capacitors.",null,"Asset failures resulting in asset fire (no grass/vegetation fire)","Other Assets","Otherwise started by a distribution system"]
[null,33,"2016-11-07T11:02:13",42681.459872685184,-38.100470982488197,145.74238599179901,2709203,"WGL12","22kV AC","RURAL LONG","Grass/vegetation fires from assets (non-asset failures) : Fire starts in grass/vegetation resulting from trees contacting network assets"," - overhead conductor (bare; all aluminium conductor)","three phase","Started by any tree, or part of a tree, falling upon or coming into contact with a distribution system","HBRA","HBRA only",1,"NO","High",0.5,0.5,225057,"20161108SPN_01","CFA reported trees on power lines and grass fire in area. Tree fell into overhead HV conductors causing the conductors to clash. The tree was between pole asset numbers 2709203 and 2709206 and was located in the road reserve.",null,"Grass/vegetation fires from assets (non-asset failures)","Fire starts in grass/vegetation resulting from trees contacting network assets","Started by any tree, or part of a tree, falling upon or coming into contact with a distribution system"]
[null,34,"2016-11-10T13:17:00",42684.553472222222,-37.059192022151002,145.10856800892,578208,"SMR1","22kV AC","RURAL SHORT","Asset failures resulting in grass/vegetation fire : HV Fuse"," - fuse (EDO fuse)","three phase","Otherwise started by a distribution system","HBRA","within electric line construction area",19.8,"NO","Low-moderate",0.2,3.9600000000000004,225159,"20161110SPN_01","Crew found hung up EDO fuse that had possibly candled & cause a spark to hit the ground. Customer extinguished the fire of approx. size 86m2. ",null,"Asset failures resulting in grass/vegetation fire","HV Fuse","Otherwise started by a distribution system"]
[null,35,"2016-11-15T01:14:00",42689.051388888889,-37.8256125998426,147.63611063202501,1614740,"BDL43","Low voltage AC (<1kV)","RURAL SHORT","Asset failures resulting in asset fire (no grass/vegetation fire) : Other Assets"," - lamps (major road)","single phase","Otherwise started by a distribution system","LBRA","LBRA only",0.2,"NO","Low-moderate",0.2,4.0000000000000008E-2,225215,"20161115SPN_02","A street light caught fire per cfa. The street light had a black plastic cover on the back of the light and there was a fault in the wiring that caused this plastic to combust, melting the plastic and causing smoke.",null,"Asset failures resulting in asset fire (no grass/vegetation fire)","Other Assets","Otherwise started by a distribution system"]
[null,36,"2016-11-21T10:00:00",42695.416666666664,-37.690266709916401,145.04256992221599,5792621,"WT12","Extra low voltage DC (<120V ripple free)","URBAN","Asset failures resulting in asset fire (no grass/vegetation fire) : Oil-filled plant fire","Other ","single phase","Otherwise started by a distribution system","LBRA","LBRA only",0.2,"NO","Very high",1,0.2,225384,"20161220SPN_02","Report on burnt CB Trip Coil at AAGS for Q102 HV CB Monday 21st Nov, 2016 No persons were hurt or in immediate danger due to this incident.",null,"Asset failures resulting in asset fire (no grass/vegetation fire)","Oil-filled plant fire","Otherwise started by a distribution system"]
[null,37,"2016-11-21T10:18:00",42695.429166666669,-38.482156284982899,145.205230052351,2807007,"PHI12","22kV AC","RURAL SHORT","Asset failures resulting in grass/vegetation fire : Other Assets"," - overhead conductor (bare; copper)","single phase","Otherwise started by a distribution system","HBRA","HBRA only",1,"NO","Very high",1,1,225339,"20161121SPN_01","HV overhead conductor broke and fell to the ground. A 5m x 10m shrub fire occurred. The CFA was called to extinguish the fire. HV fuse operated.",null,"Asset failures resulting in grass/vegetation fire","Other Assets","Otherwise started by a distribution system"]
[null,38,"2016-11-23T17:25:00",42697.725694444445,-37.125123021110703,145.027418998939,4701254,"SMR4","22kV AC","RURAL SHORT","Asset failures resulting in asset fire (no grass/vegetation fire) : HV Fuse Failure (including ‘hang-ups’ and ‘candling’)"," - fuse (EDO fuse)","single phase","Otherwise started by a distribution system","HBRA","within area delineated on plan LEGL./16-354",4.5999999999999996,"NO","High",0.5,2.2999999999999998,225404,"20161124SPN_02","On arrival to SMR BFD 205 substation, one HV fuse had candled and there was a tail hanging on the lightning arrestor but unable to determine if this had caused the fault. There were no deceased bird life or animals in vicinity.",null,"Asset failures resulting in asset fire (no grass/vegetation fire)","HV Fuse Failure (including ‘hang-ups’ and ‘candling’)","Otherwise started by a distribution system"]
[null,39,"2016-11-28T03:50:00",42702.159722222219,-38.499686026222598,145.44487901958499,2803741,"WGI23","22kV AC","RURAL SHORT","Asset failures resulting in asset fire (no grass/vegetation fire) : HV Fuse Failure (including ‘hang-ups’ and ‘candling’)"," - fuse (boric acid)","single phase","Otherwise started by a distribution system","HBRA","within area delineated on plan LEGL./16-354",4.5999999999999996,"NO","Low-moderate",0.2,0.91999999999999993,225484,"20161128SPN_01","Operator advised upon arriving @ INCD-21401-s that he found a candled & hung-up Boric Acid  fuse. It was a 6A Boric Acid fuse and there was a light drizzle and mist at the time. The area is a high salt area which may have been a contributing factor for this incident.",null,"Asset failures resulting in asset fire (no grass/vegetation fire)","HV Fuse Failure (including ‘hang-ups’ and ‘candling’)","Otherwise started by a distribution system"]
[null,40,"2016-12-02T02:12:00",42706.091666666667,-37.9872814972762,145.314675983542,519671,"LYD13","Low voltage AC (<1kV)","URBAN","Asset failures resulting in asset fire (no grass/vegetation fire) : Other Assets"," - lamps (minor road)","single phase","Otherwise started by a distribution system","HBRA","HBRA only",1,"NO","Low-moderate",0.2,0.2,225575,"20161205SPN_02","Street light hit - fire - disconnected.",null,"Asset failures resulting in asset fire (no grass/vegetation fire)","Other Assets","Otherwise started by a distribution system"]
[null,41,"2016-12-04T16:08:57",42708.672881944447,-37.772799270960398,145.27574759867099,1216269,"CPK11","22kV AC","RURAL SHORT","Asset failures resulting in asset fire (no grass/vegetation fire) : Other Assets"," - overhead conductor (ABC)","three phase","Otherwise started by a distribution system","LBRA","LBRA only",0.2,"NO","High",0.5,0.1,225589,"20161205SPN_04","HV ABC cable had been found burnt between poles 1216269 and 1216271 after protection had tripped off. No evidence of any fire damage was found, only the HV ABC appeared to be damaged. DAO attended site and found burnt HV ABC still in the air.",null,"Asset failures resulting in asset fire (no grass/vegetation fire)","Other Assets","Otherwise started by a distribution system"]
[null,42,"2016-12-09T09:47:00",42713.407638888886,-38.510794987764903,145.33423401383101,2800945,"WGI31","22kV AC","RURAL SHORT","Asset failures resulting in grass/vegetation fire : Other Assets"," - guy wire","single phase","Otherwise started by a distribution system","HBRA","within area delineated on plan LEGL./16-354",4.5999999999999996,"NO","Low-moderate",0.2,0.91999999999999993,225705,"20161216SPN_01","Corroded stay wire helical termination failed at ground level on HV anchor pole (with single phase transformer) and flicked into HV droppers of transformer becoming alive on ground where small fire occurred.",null,"Asset failures resulting in grass/vegetation fire","Other Assets","Otherwise started by a distribution system"]
[null,43,"2016-12-12T01:09:00",42716.04791666667,-37.8578577781158,145.232396312524,1031645,"BRA21","Low voltage AC (<1kV)","URBAN","Asset failures resulting in asset fire (no grass/vegetation fire) : Other Assets"," - LV pillar","three phase","Otherwise started by a distribution system","LBRA","LBRA only",0.2,"NO","High",0.5,0.1,225845,"20170116SPN_02","Crew were callled to replace 300kva kiosk s/s as well as LV straight joints to pillar which had failed due to the cabiling being old lead sheath U/G cable. The LV paralleling pillar was burnt out. The fire was contained within the pillar. There was no ground /grass fire.",null,"Asset failures resulting in asset fire (no grass/vegetation fire)","Other Assets","Otherwise started by a distribution system"]
[null,44,"2016-12-12T04:40:00",42716.194444444445,-36.165362997398297,146.76461999522601,597646,"BWA22","22kV AC","RURAL LONG","Asset failures resulting in asset fire (no grass/vegetation fire) : HV Fuse Failure (including ‘hang-ups’ and ‘candling’)"," - fuse (EDO fuse)","single phase","Otherwise started by a distribution system","HBRA","within area delineated on plan LEGL./16-354",4.5999999999999996,"YES","High",0.5,2.2999999999999998,225722,"20170117SPN_04","Rural customer called up fault and reported arcing on transformer pole with sparks and lights dimming. Customer is fed via MARTINDALE 16, single phase 10kVA S/S, wood pole. Crew attended and found one of the two EDO fuses tubes burnt in half, no evidence of fire on ground.",null,"Asset failures resulting in asset fire (no grass/vegetation fire)","HV Fuse Failure (including ‘hang-ups’ and ‘candling’)","Otherwise started by a distribution system"]
[null,45,"2016-12-14T11:22:30",42718.473958333336,-38.6366980113078,145.71059798736999,2810182,"WGI34","22kV AC","RURAL SHORT","Asset failures resulting in grass/vegetation fire : Other Assets"," - overhead conductor (bare; all aluminium conductor)","three phase","Otherwise started by a distribution system","LBRA","LBRA only",0.2,"NO","Low-moderate",0.2,4.0000000000000008E-2,225792,"20170117SPN_06","HV centre phase conductor failed at bridge where it has signs of corrosion at pole 2810182 Toorak Rd Spur P8 falling to ground where small fire was noticed. Fire attended by CFA and extinguished. Very small grass fire in vicinity. Fire size 1m x 200mm in LBRA location. Feeder CB tripped to lockout.",null,"Asset failures resulting in grass/vegetation fire","Other Assets","Otherwise started by a distribution system"]
[null,46,"2016-12-17T15:53:52",42721.662407407406,-37.9015308246817,147.21161155719699,2512255,"MFA21","12.7kV AC (SWER)","RURAL LONG","Grass/vegetation fires from assets (non-asset failures) : Fire starts in grass/vegetation resulting from trees contacting network assets"," - overhead conductor (bare; steel)","single wire earth return (SWER)","Started by any tree, or part of a tree, falling upon or coming into contact with a distribution system","HBRA","HBRA only",1,"NO","Low-moderate",0.2,0.2,225833,"20161219SPN_01","A tree fell into a SWER conductor bringing the conductor to the ground and allegedly starting a grass fire. ACR reclosed a number of times then went to lockout. The fire had burnt an area of approximately 25m x 5m. A tree branch was on the ground underneath where the conductor had been dislodged.",null,"Grass/vegetation fires from assets (non-asset failures)","Fire starts in grass/vegetation resulting from trees contacting network assets","Started by any tree, or part of a tree, falling upon or coming into contact with a distribution system"]
[null,47,"2016-12-17T21:35:20",42721.899537037039,-38.1834629776382,145.78072397267101,2702476,"WGL13","Low voltage AC (<1kV)","RURAL SHORT","Asset failures resulting in grass/vegetation fire : Other Assets"," - connection box","three phase","Otherwise started by a distribution system","HBRA","HBRA only",1,"NO","Low-moderate",0.2,0.2,225834,"20161219SPN_02","Hot metal from a loose LV connection on the pole for underground conductors appeared to have fallen to the ground. A 8m  x 7m ground fire was observed in the vicinity. No other damage.",null,"Asset failures resulting in grass/vegetation fire","Other Assets","Otherwise started by a distribution system"]
[null,48,"2016-12-19T17:57:01",42723.747928240744,-38.521948003174202,145.387463002804,2812439,"WGI31","22kV AC","RURAL SHORT","Asset failures resulting in grass/vegetation fire : Other Assets"," - connector / termination","three phase","Otherwise started by a distribution system","HBRA","within area delineated on plan LEGL./16-354",4.5999999999999996,"YES","Very high",1,4.5999999999999996,225855,"20161220SPN_01","AusNet Services' fault crew attended the site and discovered a small 6m x 4m fire had burnt out in relatively short green grass at the base of the concrete pole. The White Phase Ampact connector had failed at the top of the ACR line side isolator.No damage to property.",null,"Asset failures resulting in grass/vegetation fire","Other Assets","Otherwise started by a distribution system"]
[null,49,"2016-12-21T06:56:00",42725.288888888892,-37.823437985690497,147.659310015438,1610888,"BDL4","Low voltage AC (<1kV)","RURAL SHORT","Asset failures resulting in grass/vegetation fire : Other Assets"," - connection box","three phase","Otherwise started by a distribution system","LBRA","LBRA only",0.2,"YES","Low-moderate",0.2,4.0000000000000008E-2,225879,"20170201SPN_01","Upon investigation found melted Krone box. Two small grass fires at base of pole, one was approx 6 x 4 metres the other was approx. 3 x 1 metres.",null,"Asset failures resulting in grass/vegetation fire","Other Assets","Otherwise started by a distribution system"]
[null,50,"2016-12-22T17:00:00",42726.708333333336,-38.577096015336899,145.68367502358299,2804984,"WGI14","Low voltage AC (<1kV)","RURAL SHORT","Asset failures resulting in grass/vegetation fire : Other Assets"," - switch (disconnector/isolator)","three phase","Otherwise started by a distribution system","HBRA","within area delineated on plan LEGL./16-354",4.5999999999999996,"YES","Low-moderate",0.2,0.91999999999999993,225901,"20170206SPN_07","Small fire in waist high dry grass 4x6m size. A loose connection on LV isolator was the cause of the fault. Crew repaired damaged LV isolator.",null,"Asset failures resulting in grass/vegetation fire","Other Assets","Otherwise started by a distribution system"]
[null,51,"2016-12-24T09:16:00",42728.386111111111,-37.318965045569698,145.06830803486801,4701417,"SMR3","12.7kV AC (SWER)","RURAL LONG","Asset failures resulting in asset fire (no grass/vegetation fire) : HV Fuse Failure (including ‘hang-ups’ and ‘candling’)"," - fuse (boric acid)","single wire earth return (SWER)","Otherwise started by a distribution system","HBRA","within electric line construction area",19.8,"YES","High",0.5,9.9,225923,"20170202SPN_02","Crew were sent to all supply fault, found the boric acid fuse had hung up, also found blown transformer and damage to lightning arrestor",null,"Asset failures resulting in asset fire (no grass/vegetation fire)","HV Fuse Failure (including ‘hang-ups’ and ‘candling’)","Otherwise started by a distribution system"]
[null,52,"2016-12-26T10:16:35",42730.428182870368,-36.207407019211303,146.97411697363799,5201337,"WOTS11","22kV AC","RURAL LONG","Grass/vegetation fires from assets (non-asset failures) : Fire starts in grass/vegetation resulting from animal contact with network assets"," - insulators","three phase","Started by any person, bird, reptile or other animal coming into contact with a distribution system","HBRA","within area delineated on plan LEGL./16-354",4.5999999999999996,"YES","Very high",1,4.5999999999999996,225927,"20170103SPN_03","Magpie across insulator @ LIS 5201337. 5 Shed insulator damaged. Grass fire reported by CFA. WOTS11 reclose was at 0701hrs.",null,"Grass/vegetation fires from assets (non-asset failures)","Fire starts in grass/vegetation resulting from animal contact with network assets","Started by any person, bird, reptile or other animal coming into contact with a distribution system"]
[null,53,"2016-12-28T12:34:49",42732.524178240739,-37.482208985776197,145.29079197585401,1401497,"KLK1","22kV AC","RURAL SHORT","Grass/vegetation fires from assets (non-asset failures) : Fire starts in grass/vegetation resulting from trees contacting network assets"," - overhead conductor (bare; aluminium core steel reinforced)","three phase","Started by any tree, or part of a tree, falling upon or coming into contact with a distribution system","HBRA","within area delineated on plan LEGL./16-354",4.5999999999999996,"YES","Very high",1,4.5999999999999996,225932,"20170103SPN_04","Large pine tree broke off near base and fell 22m across hv/lv line just south of pole 1400108. Small grass fire was started mid span between poles 5765123 and 1401497",null,"Grass/vegetation fires from assets (non-asset failures)","Fire starts in grass/vegetation resulting from trees contacting network assets","Started by any tree, or part of a tree, falling upon or coming into contact with a distribution system"]
[null,54,"2016-12-29T08:05:29",42733.337141203701,-37.713518011119803,145.10540897506201,901742,"WT7","Low voltage AC (<1kV)","URBAN","Asset failures resulting in asset fire (no grass/vegetation fire) : Other Assets"," - connection box","three phase","Otherwise started by a distribution system","LBRA","LBRA only",0.2,"YES","Low-moderate",0.2,4.0000000000000008E-2,225934,"20170206SPN_04","Crew attended and found that service junction box allegedly caught fire above LV x arm on concrete pole, LIS 901742.",null,"Asset failures resulting in asset fire (no grass/vegetation fire)","Other Assets","Otherwise started by a distribution system"]
[null,55,"2017-01-06T17:18:38",42741.721273148149,-37.511082985752999,145.02583998720701,914158,"KLO14","22kV AC","RURAL LONG","Asset failures resulting in grass/vegetation fire : Other Assets"," - switch (disconnector/isolator)","three phase","Otherwise started by a distribution system","HBRA","within area delineated on plan LEGL./16-354",4.5999999999999996,"YES","High",0.5,2.2999999999999998,225981,"20170109SPN_01","A loose conductor connection on a pole mounted HV isolator failed resulting in hot particles falling to the ground resulting in a medium size grass fire.",null,"Asset failures resulting in grass/vegetation fire","Other Assets","Otherwise started by a distribution system"]
[null,56,"2017-01-07T12:43:43",42742.530358796299,-37.616660021398303,145.52164599744501,1409917,"WYK24","22kV AC","RURAL SHORT","Asset failures resulting in grass/vegetation fire : Other Assets"," - overhead conductor (ABC)","three phase","Otherwise started by a distribution system","HBRA","within electric line construction area",19.8,"YES","Very high",1,19.8,225984,"20170109SPN_02","HV non-metallic screened (NMS) ABC cable insulation failure with fault current traversing the steel cable catenary and concrete pole earthing causing hot melted particles to fall to the ground resulting in a small grass fire.",null,"Asset failures resulting in grass/vegetation fire","Other Assets","Otherwise started by a distribution system"]
[null,57,"2017-01-07T15:23:00",42742.640972222223,-37.796740997477997,147.85808301220999,1900002,"BDL41","22kV AC","RURAL LONG","Asset failures resulting in grass/vegetation fire : HV Fuse"," - fuse (EDO fuse)","three phase","Otherwise started by a distribution system","HBRA","within area delineated on plan LEGL./16-354",4.5999999999999996,"YES","High",0.5,2.2999999999999998,225985,"20170116SPN_01","Candled/burnt EDO fuse tube. EDO fuse failed to operate correctly resulting in a small grass fire at base of pole.",null,"Asset failures resulting in grass/vegetation fire","HV Fuse","Otherwise started by a distribution system"]
[null,58,"2017-01-08T06:59:28",42743.291296296295,-37.809564997593199,145.23865302259699,1212124,"RWT14","Low voltage AC (<1kV)","URBAN","Asset failures resulting in grass/vegetation fire : Other Assets"," - connector / termination","three phase","Otherwise started by a distribution system","LBRA","LBRA only",0.2,"YES","Very high",1,0.2,225987,"20170109SPN_03","IPC connector on 4x150 sq.mm LV ABC mains conductor failed with hot molten plastic from the connector igniting a small grass fire at base of pole.",null,"Asset failures resulting in grass/vegetation fire","Other Assets","Otherwise started by a distribution system"]
[null,59,"2017-01-08T12:15:00",42743.510416666664,-37.846750978819301,147.00952602460001,2513880,"MFA21","Low voltage AC (<1kV)","RURAL LONG","Asset failures resulting in grass/vegetation fire : Other Assets"," - connector / termination","three phase","Otherwise started by a distribution system","HBRA","HBRA only",1,"YES","Very high",1,1,225988,"20170109SPN_04","Loose LV connection on pole mounted Blue phase LV fuse isolator.",null,"Asset failures resulting in grass/vegetation fire","Other Assets","Otherwise started by a distribution system"]
[null,60,"2017-01-10T12:06:00",42745.504166666666,-38.0213820183914,146.63442496856899,2602874,"TGN31","22kV AC","RURAL LONG","Asset failures resulting in asset fire (no grass/vegetation fire) : HV Fuse Failure (including ‘hang-ups’ and ‘candling’)"," - fuse (EDO fuse)","single phase","Otherwise started by a distribution system","HBRA","HBRA only",1,"YES","Low-moderate",0.2,0.2,226003,"20170220SPN_03","Candled/burnt EDO fuse tube. EDO fuse failed to operate correctly.",null,"Asset failures resulting in asset fire (no grass/vegetation fire)","HV Fuse Failure (including ‘hang-ups’ and ‘candling’)","Otherwise started by a distribution system"]
[null,61,"2017-01-10T18:03:00",42745.752083333333,-38.4606389823862,146.24706000466799,2721123,"MWT14","22kV AC","RURAL LONG","Asset failures resulting in asset fire (no grass/vegetation fire) : HV Fuse Failure (including ‘hang-ups’ and ‘candling’)"," - fuse (EDO fuse)","single phase","Otherwise started by a distribution system","HBRA","HBRA only",1,"YES","Low-moderate",0.2,0.2,226011,"20170220SPN_02","Candled/burnt EDO fuse tube. EDO fuse failed to operate correctly.",null,"Asset failures resulting in asset fire (no grass/vegetation fire)","HV Fuse Failure (including ‘hang-ups’ and ‘candling’)","Otherwise started by a distribution system"]
[null,62,"2017-01-12T12:46:00",42747.531944444447,-38.123076998518798,147.080431023827,2503205,"MWTS-SLE","66kV AC","UNCLASSIFIED","Grass/vegetation fires from assets (non-asset failures) : Fire starts in grass/vegetation resulting from animal contact with network assets"," - overhead conductor (bare; all aluminium conductor)","three phase","Started by any person, bird, reptile or other animal coming into contact with a distribution system","HBRA","within area delineated on plan LEGL./16-354",4.5999999999999996,"YES","High",0.5,2.2999999999999998,226009,"20170111SPN_01","A very large bird (an Eagle) landed on a concrete pole with steel crossarms (dual circuit 66kV lines and a single circuit 22 kV line angle type structure) and made contact with a 66kV conductor (and believed to the steel crossarm) resulting in electrocution and burning of the bird which fell to the ground starting a medium size grass fire.",null,"Grass/vegetation fires from assets (non-asset failures)","Fire starts in grass/vegetation resulting from animal contact with network assets","Started by any person, bird, reptile or other animal coming into contact with a distribution system"]
[null,63,"2017-01-14T00:47:00",42749.032638888886,-38.115463992076798,145.27899498514998,510048,"CRE32","22kV AC","URBAN","Asset failures resulting in grass/vegetation fire : Other Assets"," - overhead conductor (bare; steel)","three phase","Otherwise started by a distribution system","LBRA","LBRA only",0.2,"YES","High",{"$f":"IF(S102=\"\",\"\",IF(S102=\"No forecast\",0.1,IF(R102=\"N\",0.1,IF(S102=\"Low-moderate\",0.2,IF(S102=\"High\",0.5,IF(S102=\"Very high\",1,IF(S102=\"Severe\",2,IF(S102=\"Extreme\",3.5,5))))))))","v":0.5},{"$f":"IF(OR(Q102=\"\",T102=\"\"),\"\",IF(AND(P102=\"within electric line construction area\",S102=\"No forecast\"),1,Q102*T102))","v":0.1},226053,"20170526SPN_01","Centre Phase HV broke mid span at the joint. HV was alive on the ground and burnt the ground 5cm each side of the conductor.",null,"Asset failures resulting in grass/vegetation fire","Other Assets","Otherwise started by a distribution system"]
[null,64,"2017-01-16T18:35:00",42751.774305555555,-38.652426009911402,146.325796022221,2014374,"FTR12","Low voltage AC (<1kV)","RURAL LONG","Grass/vegetation fires from assets (non-asset failures) : Fire starts in grass/vegetation resulting from other causes (vehicle strikes, vandalism etc)"," - overhead service conductor (residential)","three phase","Started by any other thing forming part of or coming into contact with a distribution system","HBRA","HBRA only",1,"YES","High",0.5,0.5,226065,"20170117SPN_01","A tractor with a mowing unit attached contacted a 3-wire  overhead service cable which broke and fell to the ground causing sparks resulting in a small grass fire.",null,"Grass/vegetation fires from assets (non-asset failures)","Fire starts in grass/vegetation resulting from other causes (vehicle strikes, vandalism etc)","Started by any other thing forming part of or coming into contact with a distribution system"]
[null,65,"2017-01-17T10:43:00",42752.446527777778,-37.295411994233099,144.98227301896901,4717283,"SMR-KMS","66kV AC","UNCLASSIFIED","Grass/vegetation fires from assets (non-asset failures) : Fire starts in grass/vegetation resulting from animal contact with network assets"," - overhead conductor (bare; aluminium core steel reinforced)","three phase","Started by any person, bird, reptile or other animal coming into contact with a distribution system","HBRA","within area delineated on plan LEGL./16-354",4.5999999999999996,"YES","Severe",2,9.1999999999999993,226071,"20170117SPN_02","A large bird caused a flashover between a 66kV conductor to the bottom of the 66kV insulator to the concrete pole resulting in a small fire.",null,"Grass/vegetation fires from assets (non-asset failures)","Fire starts in grass/vegetation resulting from animal contact with network assets","Started by any person, bird, reptile or other animal coming into contact with a distribution system"]
[null,66,"2017-01-17T11:29:00",42752.478472222225,-37.963099991539202,146.985809997134,2514867,"MFA31","Low voltage AC (<1kV)","RURAL SHORT","Asset failures resulting in grass/vegetation fire : Other Assets"," - overhead service conductor (residential)","single phase","Otherwise started by a distribution system","LBRA","LBRA only",0.2,"YES","Very high",1,0.2,226088,"20170118SPN_01","A neutral screen service cable termination clamp failed at the pole end causing the cable to burn and fall to the ground resulting in a small grass fire.",null,"Asset failures resulting in grass/vegetation fire","Other Assets","Otherwise started by a distribution system"]
[null,67,"2017-01-17T18:22:00",42752.765277777777,-37.894666023903604,145.249037971191,1311306,"BRA13","Low voltage AC (<1kV)","URBAN","Asset failures resulting in asset fire (no grass/vegetation fire) : Other Assets"," - connection box","three phase","Otherwise started by a distribution system","LBRA","LBRA only",0.2,"YES","Very high",1,0.2,226090,"20170222SPN_01","A Fused Switch Disconnector (FSD) (Krone box) caught fire causing the box to melt. Typical causes are high impedance connections or electrical overload.",null,"Asset failures resulting in asset fire (no grass/vegetation fire)","Other Assets","Otherwise started by a distribution system"]
[null,{"$f":"B106+1","v":68},"2017-01-25T18:10:00",42760.756944444445,-37.830195010460699,145.33470398142299,1208865,"BWR13","22kV AC","URBAN","Asset failures resulting in asset fire (no grass/vegetation fire) : HV Fuse Failure (including ‘hang-ups’ and ‘candling’)"," - fuse (boric acid)","single phase","Otherwise started by a distribution system","HBRA","within electric line construction area",19.8,"YES","High",0.5,9.9,226200,"20170301SPN_02","Candled/burnt EDO fuse tube. EDO fuse failed to operate correctly.",null,"Asset failures resulting in asset fire (no grass/vegetation fire)","HV Fuse Failure (including ‘hang-ups’ and ‘candling’)","Otherwise started by a distribution system"]
[null,69,"2017-01-25T18:18:02",42760.762523148151,-36.155262159323101,146.05534667824699,5131906,"WN2","12.7kV AC (SWER)","RURAL LONG","Grass/vegetation fires from assets (non-asset failures) : Fire starts in grass/vegetation resulting from other causes (vehicle strikes, vandalism etc)"," - overhead conductor (bare; steel)","single wire earth return (SWER)","Started by any other thing forming part of or coming into contact with a distribution system","HBRA","within area delineated on plan LEGL./16-354",4.5999999999999996,"YES","High",0.5,2.2999999999999998,226201,"20170130SPN_01","A tip truck delivering mulch contacted an overhead SWER conductor resulting in a small grass fire.",null,"Grass/vegetation fires from assets (non-asset failures)","Fire starts in grass/vegetation resulting from other causes (vehicle strikes, vandalism etc)","Started by any other thing forming part of or coming into contact with a distribution system"]
[null,70,"2017-01-26T09:57:00",42761.414583333331,-38.629912997535499,146.50302600739499,2609024,"FTR12","Low voltage AC (<1kV)","RURAL LONG","Asset failures resulting in grass/vegetation fire : Other Assets"," - connection box","single wire earth return (SWER)","Otherwise started by a distribution system","HBRA","HBRA only",1,"YES","High",0.5,0.5,226205,"20170215SPN_01","A Fused Overhead Line Connector Box (FOLCB) caught fire causing the box to melt resulting in a small grass fire. Typical causes are high impedance connections or electrical overload.",null,"Asset failures resulting in grass/vegetation fire","Other Assets","Otherwise started by a distribution system"]
[null,71,"2017-01-31T17:46:00",42766.740277777775,-36.5509512425919,145.98318305152199,3900143,"BN4","Low voltage AC (<1kV)","URBAN","Asset failures resulting in asset fire (no grass/vegetation fire) : Other Assets"," - connection box","three phase","Otherwise started by a distribution system","LBRA","LBRA only",0.2,"YES","Very high",1,0.2,226246,"20170301SPN_03","A 100 Amp pole junction box supplying an underground service cable caught fire caused by electrical overload. This also resulted in fire damage to overhead service cables on the pole.     ",null,"Asset failures resulting in asset fire (no grass/vegetation fire)","Other Assets","Otherwise started by a distribution system"]
[null,72,"2017-02-05T17:51:00",42771.743750000001,-38.248957996491001,146.497106999089,2623408,"TGN23","22kV AC","RURAL SHORT","Grass/vegetation fires from assets (non-asset failures) : Fire starts in grass/vegetation resulting from animal contact with network assets"," - overhead conductor (bare; all aluminium conductor)","three phase","Started by any person, bird, reptile or other animal coming into contact with a distribution system","HBRA","HBRA only",1,"YES","High",0.5,0.5,226292,"20170206SPN_01","A large bird caused a flashover between a HV conductor and steel crossarm on a concrete pole resulting in electrocution and burning of the bird which fell to the ground starting a large  grass fire.",null,"Grass/vegetation fires from assets (non-asset failures)","Fire starts in grass/vegetation resulting from animal contact with network assets","Started by any person, bird, reptile or other animal coming into contact with a distribution system"]
[null,73,"2017-02-05T18:54:00",42771.787499999999,-37.770250980108102,145.20377499298399,1205491,"RWN26","Low voltage AC (<1kV)","RURAL SHORT","Asset failures resulting in grass/vegetation fire : Other Assets"," - overhead service conductor (residential)","single phase","Otherwise started by a distribution system","HBRA","within area delineated on plan LEGL./16-354",4.5999999999999996,"YES","Low-moderate",0.2,0.91999999999999993,226466,"20170206SPN_02","Strong wind conditions caused a neutral screen service cable connection to come away at the POA end causing the cable to fall to the ground resulting in sparking and a small grass fire.",null,"Asset failures resulting in grass/vegetation fire","Other Assets","Otherwise started by a distribution system"]
[null,74,"2017-02-08T14:38:51",42774.610312500001,-36.377955517676902,146.35618469750199,5110868,"WN5","22kV AC","RURAL LONG","Grass/vegetation fires from assets (non-asset failures) : Fire starts in grass/vegetation resulting from trees contacting network assets"," - overhead conductor (bare; steel)","three phase","Started by any tree, or part of a tree, falling upon or coming into contact with a distribution system","HBRA","within area delineated on plan LEGL./16-354",4.5999999999999996,"YES","High",0.5,2.2999999999999998,226337,"20170215SPN_02","A large decayed mature river red gum tree fell onto 22kV conductors which resulted in a medium size grass fire.",null,"Grass/vegetation fires from assets (non-asset failures)","Fire starts in grass/vegetation resulting from trees contacting network assets","Started by any tree, or part of a tree, falling upon or coming into contact with a distribution system"]
[null,75,"2017-02-08T23:49:00",42774.992361111108,-37.821889000294597,145.24317300944,1216447,"RWT32","Low voltage AC (<1kV)","URBAN","Asset failures resulting in grass/vegetation fire : Other Assets"," - services pit","three phase","Otherwise started by a distribution system","LBRA","LBRA only",0.2,"YES","High",0.5,0.1,226336,"20170209SPN_01","An LV IPC connection caught fire and hot molten plastic fell to the ground resulting in several small burn marks on the grass.  ",null,"Asset failures resulting in grass/vegetation fire","Other Assets","Otherwise started by a distribution system"]
[null,76,"2017-02-09T18:50:58",42775.785393518519,-36.530467984618397,145.91732598000399,597128,"BN3","22kV AC","RURAL SHORT","Asset failures resulting in grass/vegetation fire : HV Fuse"," - fuse (EDO fuse)","single phase","Otherwise started by a distribution system","HBRA","within area delineated on plan LEGL./16-354",4.5999999999999996,"YES","High",0.5,2.2999999999999998,226356,"20170213SPN_01","Candled/burnt EDO fuse tube. EDO fuse failed to operate correctly resulting in a medium size grass fire and the burning of 300 hay bales. ",null,"Asset failures resulting in grass/vegetation fire","HV Fuse","Otherwise started by a distribution system"]
[null,77,"2017-02-11",42777,-37.854098501585703,145.542884657402,1316030,"LDL13","12.7kV AC (SWER)","RURAL SHORT","Grass/vegetation fires from assets (non-asset failures) : Fire starts in grass/vegetation resulting from trees contacting network assets"," - overhead conductor (bare; steel)","single wire earth return (SWER)","Started by any tree, or part of a tree, falling upon or coming into contact with a distribution system","HBRA","within area delineated on plan LEGL./16-354",4.5999999999999996,"YES","High",0.5,2.2999999999999998,226393,"20170213SPN_03","Windy conditions caused a large tree branch to fall into a SWER line bringing the conductor to the ground starting a small grass fire.",null,"Grass/vegetation fires from assets (non-asset failures)","Fire starts in grass/vegetation resulting from trees contacting network assets","Started by any tree, or part of a tree, falling upon or coming into contact with a distribution system"]
[null,78,"2017-02-12T02:50:00",42778.118055555555,-36.156629079869298,147.26306659722701,5212292,"WOTS24","12.7kV AC (SWER)","RURAL LONG","Asset failures resulting in asset fire (no grass/vegetation fire) : HV Fuse Failure (including ‘hang-ups’ and ‘candling’)"," - fuse (boric acid)","single wire earth return (SWER)","Otherwise started by a distribution system","HBRA","within area delineated on plan LEGL./16-354",4.5999999999999996,"YES","High",0.5,2.2999999999999998,226394,"20170213SPN_04","A Boric Acid tube fuse hung-up and candled caused by lightning.",null,"Asset failures resulting in asset fire (no grass/vegetation fire)","HV Fuse Failure (including ‘hang-ups’ and ‘candling’)","Otherwise started by a distribution system"]
[null,79,"2017-02-13T10:08:16",42779.422407407408,-38.469595003507798,145.29719896867701,2805593,"PHI11","22kV AC","RURAL SHORT","Any other Fire Start : Any additional fires, caused by any asset failure, not reported to the ESV and required to be reported by the f-factor Order"," - overhead conductor (bare; all aluminium conductor)","three phase","Started by any person, bird, reptile or other animal coming into contact with a distribution system","LBRA","LBRA only",0.2,"YES","Low-moderate",0.2,4.0000000000000008E-2,226406,"20170214SPN_02","Possum on substation pole caused a flashover, shorted between phases, which resulted in the pole top being burnt through at the king bolt causing the HV conductors to fall into LV conductors.",null,"Any other Fire Start","Any additional fires, caused by any asset failure, not reported to the ESV and required to be reported by the f-factor Order","Started by any person, bird, reptile or other animal coming into contact with a distribution system"]
[null,80,"2017-02-13T14:04:00",42779.586111111108,-38.214317021571603,145.31888602307501,517359,"CRE33","22kV AC","RURAL SHORT","Any other Fire Start : Any additional fires, caused by any asset failure, not reported to the ESV and required to be reported by the f-factor Order"," - overhead conductor (bare; aluminium core steel reinforced)","three phase","Started by any person, bird, reptile or other animal coming into contact with a distribution system","HBRA","HBRA only",1,"YES","Low-moderate",0.2,0.2,226409,"20170214SPN_03","Possum on 3 phase anchor pole caused a flashover, shorted between phases which resulted in a pole fire.",null,"Any other Fire Start","Any additional fires, caused by any asset failure, not reported to the ESV and required to be reported by the f-factor Order","Started by any person, bird, reptile or other animal coming into contact with a distribution system"]
[null,81,"2017-02-14T15:12:33",42780.633715277778,-36.008326993682203,146.393787013756,5207130,"WN3","Low voltage AC (<1kV)","RURAL LONG","Asset failures resulting in grass/vegetation fire : Other Assets"," - switch (disconnector/isolator)","three phase","Otherwise started by a distribution system","LBRA","LBRA only",0.2,"YES","High",0.5,0.1,226441,"20170216SPN_02","An LV fused isolator on a substation pole overheated where the copper lead is attached to the isolator. Hot material falling from the isolator may have still been alight when it hit the ground resulting in a small grass fire.",null,"Asset failures resulting in grass/vegetation fire","Other Assets","Otherwise started by a distribution system"]
[null,82,"2017-02-15T12:03:00",42781.502083333333,-37.798581997793001,145.4078789772,1010839,"LDL13","Low voltage AC (<1kV)","RURAL SHORT","Asset failures resulting in grass/vegetation fire : Other Assets"," - overhead conductor (ABC)","three phase","Otherwise started by a distribution system","HBRA","within area delineated on plan LEGL./16-354",4.5999999999999996,"YES","Very high",1,4.5999999999999996,226450,"20170216SPN_03","Burnt out active conductors at LV ABC IPC connections at pole top caused sparks and molten plastic to fall to the ground resulting in a very small grass fire.",null,"Asset failures resulting in grass/vegetation fire","Other Assets","Otherwise started by a distribution system"]
[null,83,"2017-02-15T19:55:00",42781.829861111109,-38.509798485961603,145.22770904520101,2806401,"PHI12","22kV AC","RURAL SHORT","Grass/vegetation fires from assets (non-asset failures) : Fire starts in grass/vegetation resulting from other causes (vehicle strikes, vandalism etc)"," - overhead conductor (bare; aluminium core steel reinforced)","three phase","Started by any other thing forming part of or coming into contact with a distribution system","HBRA","HBRA only",1,"YES","Very high",1,1,226461,"20170216SPN_04","Plastic silage pieces for hay bales was blown onto the nearby HV conductors causing the plastic silage to catch fire and fall to the ground starting a medium size grass fire.",null,"Grass/vegetation fires from assets (non-asset failures)","Fire starts in grass/vegetation resulting from other causes (vehicle strikes, vandalism etc)","Started by any other thing forming part of or coming into contact with a distribution system"]
[null,84,"2017-02-16T05:00:00",42782.208333333336,-37.835839989470102,145.23892100185,1204917,"RWT15","66kV AC","URBAN","Grass/vegetation fires from assets (non-asset failures) : Fire starts in grass/vegetation resulting from animal contact with network assets"," - overhead conductor (bare; all aluminium conductor)","three phase","Started by any person, bird, reptile or other animal coming into contact with a distribution system","LBRA","LBRA only",0.2,"YES","High",0.5,0.1,226488,"20170217SPN_01","A possum caused a flashover between a 66kV conductor and the concrete pole/steel crossarm and into the neutral via an Optus earth resulting in a gas meter fire.",null,"Grass/vegetation fires from assets (non-asset failures)","Fire starts in grass/vegetation resulting from animal contact with network assets","Started by any person, bird, reptile or other animal coming into contact with a distribution system"]
[null,85,"2017-02-17T17:23:20",42783.724537037036,-36.285017017513503,147.11865397288199,5217958,"WOTS13","22kV AC","RURAL LONG","Asset failures resulting in grass/vegetation fire : HV Fuse"," - fuse (boric acid)","three phase","Otherwise started by a distribution system","HBRA","within area delineated on plan LEGL./16-354",4.5999999999999996,"YES","Very high",1,4.5999999999999996,226507,"20170220SPN_01","A Boric Acid tube fuse hung-up and was arcing between the top and bottom sections of the fuse tube causing molten material to fall to the ground resulting in a medium size grass fire.",null,"Asset failures resulting in grass/vegetation fire","HV Fuse","Otherwise started by a distribution system"]
[null,86,"2017-02-22T15:50:00",42788.659722222219,-37.376207984258997,145.03334296788,912281,"KLO14","22kV AC","RURAL LONG","Grass/vegetation fires from assets (non-asset failures) : Fire starts in grass/vegetation resulting from trees contacting network assets"," - overhead conductor (bare; all aluminium conductor)","three phase","Started by any tree, or part of a tree, falling upon or coming into contact with a distribution system","HBRA","within area delineated on plan LEGL./16-354",4.5999999999999996,"YES","Severe",2,9.1999999999999993,226575,"20170222SPN_02","During strong wind conditions a partly rotted tall gum tree on private property broke and fell into a 22kV conductor causing it to contact an LV conductor resulting in sparks and hot molten material to fall to the ground igniting a medium size grass fire.  ",null,"Grass/vegetation fires from assets (non-asset failures)","Fire starts in grass/vegetation resulting from trees contacting network assets","Started by any tree, or part of a tree, falling upon or coming into contact with a distribution system"]
[null,87,"2017-02-23T15:04:00",42789.62777777778,-36.117433989420299,147.003054659387,5235747,"WOTS-HPS","66kV AC","UNCLASSIFIED","Asset failures resulting in grass/vegetation fire : Pole and cross arm failure or Pole and cross arm fire"," - crossarm (wood)","three phase","Otherwise started by a distribution system","HBRA","within area delineated on plan LEGL./16-354",4.5999999999999996,"YES","Very high",1,4.5999999999999996,226579,"20170223SPN_01","A broken crossarm on a parallel vertical 66kV circuit caused the middle and lower conductors to clash resulting in a large grass fire. Active termites were found in the broken crossarm and in the pole. ",null,"Asset failures resulting in grass/vegetation fire","Pole and cross arm failure or Pole and cross arm fire","Otherwise started by a distribution system"]
[null,88,"2017-02-28T14:45:58",42794.615254629629,-37.813324974840803,145.286995015684,1206763,"CYN11","22kV AC","URBAN","Grass/vegetation fires from assets (non-asset failures) : Fire starts in grass/vegetation resulting from animal contact with network assets"," - switch (disconnector/isolator)","three phase","Started by any person, bird, reptile or other animal coming into contact with a distribution system","LBRA","LBRA only",0.2,"YES","Very high",1,0.2,226658,"20170228SPN_01","A bird shorted out between the 22kV leads and the lever of a HV gas switch resulting in a small grass fire. ",null,"Grass/vegetation fires from assets (non-asset failures)","Fire starts in grass/vegetation resulting from animal contact with network assets","Started by any person, bird, reptile or other animal coming into contact with a distribution system"]
[null,89,"2017-03-01T06:42:00",42795.279166666667,-36.843777994571198,145.463006025981,3901723,"BN1","22kV AC","RURAL LONG","Asset failures resulting in grass/vegetation fire : HV Fuse"," - fuse (boric acid)","single phase","Otherwise started by a distribution system","HBRA","within area delineated on plan LEGL./16-354",4.5999999999999996,"YES","High",0.5,2.2999999999999998,226773,"20170301SPN_01","A Boric Acid fuse tube hung-up and candled causing molten material to fall to the ground resulting in a medium size grass fire. Boric Acid fuse failed to operate correctly.",null,"Asset failures resulting in grass/vegetation fire","HV Fuse","Otherwise started by a distribution system"]
[null,90,"2017-03-03T11:16:59",42797.470127314817,-36.238601007926199,146.271955014105,5103424,"WN3","Low voltage AC (<1kV)","RURAL LONG","Asset failures resulting in grass/vegetation fire : Other Assets"," - connection box","three phase","Otherwise started by a distribution system","HBRA","within area delineated on plan LEGL./16-354",4.5999999999999996,"YES","Very high",1,4.5999999999999996,226737,"20170306SPN_01","A Fused Switch Disconnector (FSD) (Krone box) caught fire causing the box to melt resulting in a small grass fire. Typical causes are high impedance connections or electrical overload.",null,"Asset failures resulting in grass/vegetation fire","Other Assets","Otherwise started by a distribution system"]
[null,91,"2017-03-03T22:37:45",42797.942881944444,-37.221705788296497,145.65144542934601,4712442,"RUBA12","12.7kV AC (SWER)","RURAL LONG","Grass/vegetation fires from assets (non-asset failures) : Fire starts in grass/vegetation resulting from trees contacting network assets"," - overhead conductor (bare; steel)","single wire earth return (SWER)","Started by any tree, or part of a tree, falling upon or coming into contact with a distribution system","HBRA","within area delineated on plan LEGL./16-354",4.5999999999999996,"YES","High",0.5,2.2999999999999998,226756,"20170306SPN_02","Strong windy conditions caused a large tree branch to fall into a SWER line bringing the conductor to the ground starting a medium size grass fire. The tree branch showed signs of rot and the tree was outside the vegetation clearance space.",null,"Grass/vegetation fires from assets (non-asset failures)","Fire starts in grass/vegetation resulting from trees contacting network assets","Started by any tree, or part of a tree, falling upon or coming into contact with a distribution system"]
[null,92,"2017-03-08T14:22:00",42802.598611111112,-38.092629988960503,145.50217101333999,524590,"PHM12","22kV AC","RURAL SHORT","Grass/vegetation fires from assets (non-asset failures) : Fire starts in grass/vegetation resulting from animal contact with network assets"," - transformer (pole mounted)","three phase","Started by any person, bird, reptile or other animal coming into contact with a distribution system","HBRA","HBRA only",{"$f":"IF(P131=\"\",\"\",IF(P131=\"LBRA only\",0.2,IF(P131=\"HBRA only\",1,IF(P131=\"within electric line construction area\",19.8,IF(P131=\"within area delineated on plan LEGL./16-354\",4.6,\"\")))))","v":1},"YES","High",{"$f":"IF(S131=\"\",\"\",IF(S131=\"No forecast\",0.1,IF(R131=\"N\",0.1,IF(S131=\"Low-moderate\",0.2,IF(S131=\"High\",0.5,IF(S131=\"Very high\",1,IF(S131=\"Severe\",2,IF(S131=\"Extreme\",3.5,5))))))))","v":0.5},{"$f":"IF(OR(Q131=\"\",T131=\"\"),\"\",IF(AND(P131=\"within electric line construction area\",S131=\"No forecast\"),1,Q131*T131))","v":0.5},226815,"20170309SPN_01","A large bird caused a flashover between a HV termination and earth of a transformer on a concrete substation pole resulting in electrocution and burning of the bird which fell to the ground starting a medium size grass fire.",null,"Grass/vegetation fires from assets (non-asset failures)","Fire starts in grass/vegetation resulting from animal contact with network assets","Started by any person, bird, reptile or other animal coming into contact with a distribution system"]
[null,93,"2017-03-10T17:28:00",42804.727777777778,-38.4561999251166,145.242245171186,2803645,"PHI13","Low voltage AC (<1kV)","URBAN","Asset failures resulting in asset fire (no grass/vegetation fire) : Other Assets"," - connection box","three phase","Otherwise started by a distribution system","LBRA","LBRA only",0.2,"YES","High",0.5,0.1,226862,"20170406SPN_01","A Fused Switch Disconnector (FSD) (Krone box) caught fire causing the box to melt. Typical causes are high impedance connections or electrical overload.",null,"Asset failures resulting in asset fire (no grass/vegetation fire)","Other Assets","Otherwise started by a distribution system"]
[null,94,"2017-03-13T10:23:00",42807.432638888888,-38.120139991009502,146.26940898154999,2201134,"MOE21","Low voltage AC (<1kV)","RURAL SHORT","Asset failures resulting in grass/vegetation fire : Other Assets"," - connection box","single phase","Otherwise started by a distribution system","HBRA","within area delineated on plan LEGL./16-354",4.5999999999999996,"YES","High",0.5,2.2999999999999998,226876,"20170508SPN_01","A pole junction box failed causing it to catch on fire. A small patch of grass was burnt at base of the pole. Typical causes are high impedance connections or electrical overload.",null,"Asset failures resulting in grass/vegetation fire","Other Assets","Otherwise started by a distribution system"]
[null,95,"2017-03-15T02:55:59",42809.122210648151,-37.7073460205944,145.16174900842401,918947,"ELM13","22kV AC","URBAN","Grass/vegetation fires from assets (non-asset failures) : Fire starts in grass/vegetation resulting from animal contact with network assets"," - switch (disconnector/isolator)","three phase","Started by any person, bird, reptile or other animal coming into contact with a distribution system","LBRA","LBRA only",0.2,"YES","Very high",1,0.2,226903,"20170316SPN_02","A possum caused a flashover between phases at a manually operated HV Gas Switch mounted on a wood pole resulting in hot particles falling to the ground starting a very small patch of grass to catch fire. ",null,"Grass/vegetation fires from assets (non-asset failures)","Fire starts in grass/vegetation resulting from animal contact with network assets","Started by any person, bird, reptile or other animal coming into contact with a distribution system"]
[null,96,"2017-03-15T06:52:00",42809.286111111112,-38.586335009246,146.55960502742099,2622133,"FTR12","22kV AC","RURAL LONG","Asset failures resulting in asset fire (no grass/vegetation fire) : HV Fuse Failure (including ‘hang-ups’ and ‘candling’)"," - fuse (boric acid)","single phase","Otherwise started by a distribution system","HBRA","HBRA only",1,"YES","High",0.5,0.5,226904,"20170510SPN_02","Candled/burnt Boric Acid fuse tube. Boric Acid fuse failed to operate correctly.",null,"Asset failures resulting in asset fire (no grass/vegetation fire)","HV Fuse Failure (including ‘hang-ups’ and ‘candling’)","Otherwise started by a distribution system"]
[null,97,"2017-03-18T01:18:45",42812.0546875,-38.0707029821966,145.57254902067899,517611,"PHM14","22kV AC","RURAL LONG","Asset failures resulting in grass/vegetation fire : Other Assets"," - switch (disconnector/isolator)","three phase","Otherwise started by a distribution system","HBRA","HBRA only",1,"YES","High",0.5,0.5,226971,"20170319SPN_01","Burnt out line side of a HV blade isolator mounted on a steel crossarm on a concrete pole resulting in hot particles falling to the ground starting a very small grass fire at base of the pole. Mechanical failure of switch – the isolator had been sparking and appeared not to be aligned straight.",null,"Asset failures resulting in grass/vegetation fire","Other Assets","Otherwise started by a distribution system"]
[null,98,"2017-03-27T11:21:01",42821.472928240742,-38.558221019488101,145.88129301812401,2010501,"LGA23","Low voltage AC (<1kV)","RURAL LONG","Asset failures resulting in grass/vegetation fire : Other Assets"," - connection box","single phase","Otherwise started by a distribution system","HBRA","HBRA only",1,"YES","Very high",1,1,227122,"20170329SPN_02","A molten LV fuse carrier from a pole mounted FOLCB fell to the ground starting a small grass fire.  Cause unknown but likely high impedance connection of the inserted fuse carrier.",null,"Asset failures resulting in grass/vegetation fire","Other Assets","Otherwise started by a distribution system"]
[null,99,"2017-04-02T07:50:00",42827.326388888891,-38.398482003455598,146.15866999915801,2021888,"LGA11","22kV AC","RURAL LONG","Asset failures resulting in asset fire (no grass/vegetation fire) : HV Fuse Failure (including ‘hang-ups’ and ‘candling’)"," - fuse (EDO fuse)","three phase","Otherwise started by a distribution system","LBRA","LBRA only",0.2,"YES","Low-moderate",0.2,4.0000000000000008E-2,227320,"20170403SPN_01","Candled/burnt EDO fuse tube. EDO fuse failed to operate correctly.",null,"Asset failures resulting in asset fire (no grass/vegetation fire)","HV Fuse Failure (including ‘hang-ups’ and ‘candling’)","Otherwise started by a distribution system"]
[null,100,"2017-04-11T13:40:00",42836.569444444445,-37.927899004899899,145.95021397647801,2700395,"WGL24","22kV AC","RURAL LONG","Asset failures resulting in asset fire (no grass/vegetation fire) : HV Fuse Failure (including ‘hang-ups’ and ‘candling’)"," - fuse (EDO fuse)","three phase","Otherwise started by a distribution system","HBRA","HBRA only",1,"YES","Low-moderate",0.2,0.2,227473,"20170420SPN_01","Candled/burnt EDO fuse tube. EDO fuse failed to operate correctly.",null,"Asset failures resulting in asset fire (no grass/vegetation fire)","HV Fuse Failure (including ‘hang-ups’ and ‘candling’)","Otherwise started by a distribution system"]
[null,101,"2017-04-24T02:30:00",42849.104166666664,-37.8509949963032,145.26016098390701,1219519,"BWR34","Low voltage AC (<1kV)","URBAN","Asset failures resulting in asset fire (no grass/vegetation fire) : Other Assets"," - lamps (minor road)","single phase","Otherwise started by a distribution system","LBRA","LBRA only",0.2,"YES","Low-moderate",0.2,4.0000000000000008E-2,227611,"20170426SPN_01","Street light lantern caught fire. Internal fault in street light lantern.",null,"Asset failures resulting in asset fire (no grass/vegetation fire)","Other Assets","Otherwise started by a distribution system"]
[null,102,"2017-05-09T23:14:00",42864.968055555553,-38.031009266698,145.34200356365901,5765423,"BWN13","Low voltage AC (<1kV)","URBAN","Asset failures resulting in asset fire (no grass/vegetation fire) : Other Assets"," - lamps (major road)","single phase","Otherwise started by a distribution system","LBRA","LBRA only",0.2,"NO","No forecast",0.1,2.0000000000000004E-2,227798,"20170529SPN_01","Street light lantern caught fire. Internal fault in street light lantern.",null,"Asset failures resulting in asset fire (no grass/vegetation fire)","Other Assets","Otherwise started by a distribution system"]
[null,103,"2017-05-17T19:05:00",42872.795138888891,-37.876546852180702,148.00505554588199,1902475,"BDL41","Low voltage AC (<1kV)","RURAL LONG","Asset failures resulting in asset fire (no grass/vegetation fire) : Other Assets"," - lamps (major road)","single phase","Otherwise started by a distribution system","LBRA","LBRA only",0.2,"NO","No forecast",0.1,2.0000000000000004E-2,228117,"20170601SPN_01","Street light lantern caught fire. Internal fault in street light lantern.",null,"Asset failures resulting in asset fire (no grass/vegetation fire)","Other Assets","Otherwise started by a distribution system"]
[null,104,"2017-05-24T05:53:00",42879.245138888888,-38.128071999872901,145.75443701351799,2716082,"WGL12","22kV AC","RURAL LONG","Asset failures resulting in asset fire (no grass/vegetation fire) : HV Fuse Failure (including ‘hang-ups’ and ‘candling’)"," - fuse (EDO fuse)","single phase","Otherwise started by a distribution system","HBRA","HBRA only",1,"NO","No forecast",0.1,0.1,228037,"20170531SPN_02","Candled/burnt EDO fuse tube. EDO fuse failed to operate correctly.",null,"Asset failures resulting in asset fire (no grass/vegetation fire)","HV Fuse Failure (including ‘hang-ups’ and ‘candling’)","Otherwise started by a distribution system"]
[null,105,"2017-05-31T21:10:00",42886.881944444445,-37.871376998221102,148.00804198962601,1902525,"BDL41","22kV AC","RURAL LONG","Asset failures resulting in asset fire (no grass/vegetation fire) : HV Fuse Failure (including ‘hang-ups’ and ‘candling’)"," - fuse (EDO fuse)","three phase","Otherwise started by a distribution system","HBRA","within area delineated on plan LEGL./16-354",4.5999999999999996,"NO","No forecast",0.1,0.45999999999999996,228272,"20170614SPN_01","Candled/burnt EDO fuse tube. EDO fuse failed to operate correctly.",null,"Asset failures resulting in asset fire (no grass/vegetation fire)","HV Fuse Failure (including ‘hang-ups’ and ‘candling’)","Otherwise started by a distribution system"]
[null,106,"2017-06-10T23:16:00",42896.969444444447,-37.8962152416035,147.85527964802199,1911158,"BDL6","Low voltage AC (<1kV)","RURAL SHORT","Asset failures resulting in asset fire (no grass/vegetation fire) : Other Assets"," - connection box","three phase","Otherwise started by a distribution system","LBRA","LBRA only",0.2,"NO","No forecast",0.1,2.0000000000000004E-2,228484,"20170704SPN_01","Overheated connection caused LV fuse box to combust",null,"Asset failures resulting in asset fire (no grass/vegetation fire)","Other Assets","Otherwise started by a distribution system"]
[null,107,"2017-06-15T18:00:00",42901.75,-37.898868992698198,145.332668988287,1314427,"UWY1","Low voltage AC (<1kV)","RURAL SHORT","Asset failures resulting in asset fire (no grass/vegetation fire) : Other Assets"," - overhead conductor (insulated)","three phase","Otherwise started by a distribution system","HBRA","within electric line construction area",19.8,"NO","No forecast",0.1,1,228541,"20170817SPN_01","LV leads burnt out",null,"Asset failures resulting in asset fire (no grass/vegetation fire)","Other Assets","Otherwise started by a distribution system"]
[null,108,"2017-06-20T07:01:35",42906.292766203704,-37.218458010845403,145.73383499156,4711213,"RUBA12","22kV AC","RURAL LONG","Asset failures resulting in asset fire (no grass/vegetation fire) : HV Fuse Failure (including ‘hang-ups’ and ‘candling’)"," - fuse (boric acid)","three phase","Otherwise started by a distribution system","HBRA","within area delineated on plan LEGL./16-354",4.5999999999999996,"NO","No forecast",0.1,0.45999999999999996,228617,"20170707SPN_01","Candled/burnt BA fuse tube",null,"Asset failures resulting in asset fire (no grass/vegetation fire)","HV Fuse Failure (including ‘hang-ups’ and ‘candling’)","Otherwise started by a distribution system"]
[null,109,"2017-06-25T18:00:00",42911.75,-38.031794004231301,146.98642324275599,2508411,"MFA23","22kV AC","RURAL SHORT","Grass/vegetation fires from assets (non-asset failures) : Fire starts in grass/vegetation resulting from animal contact with network assets"," - overhead conductor (bare; steel)","three phase","Started by any person, bird, reptile or other animal coming into contact with a distribution system","LBRA","LBRA only",0.2,"NO","No forecast",0.1,2.0000000000000004E-2,228743,"20170627SPN_01","Conductor down. Observed a burnt area. ",null,"Grass/vegetation fires from assets (non-asset failures)","Fire starts in grass/vegetation resulting from animal contact with network assets","Started by any person, bird, reptile or other animal coming into contact with a distribution system"]
[null,110,"2017-06-28T09:19:00",42914.388194444444,-38.384051020892997,146.11496799286701,2002648,"LGA11","22kV AC","RURAL LONG","Asset failures resulting in asset fire (no grass/vegetation fire) : HV Fuse Failure (including ‘hang-ups’ and ‘candling’)"," - fuse (EDO fuse)","single phase","Otherwise started by a distribution system","HBRA","HBRA only",1,"NO","No forecast",0.1,0.1,228816,"20170817SPN_02","Candled/burnt switch",null,"Asset failures resulting in asset fire (no grass/vegetation fire)","HV Fuse Failure (including ‘hang-ups’ and ‘candling’)","Otherwise started by a distribution system"]

{"sheet":"3. Systems and Audit","index":4,"n_rows":23,"n_cols":5,"rows_kept":23,"cut":false,"hidden":false,"merged":[[24,1,25,4],[3,5,3,6],[4,5,4,6],[5,5,5,6],[6,1,6,4],[9,1,9,4],[14,1,14,4],[10,1,10,4],[13,1,13,4],[12,1,12,4],[11,1,11,4],[19,4,21,4]]}
[null,{"$f":"IF(Cover!C25=\"\",\"[DNSP Name]\", Cover!C25)","v":"AusNet Services"}]
[null,"F-factor data reporting"]
[null,{"$f":"IF(Cover!C31=\"\",\"[Year]\",Cover!C31)","v":"2016/17"}]
[]
[]
[null,"Instructions:"]
[]
[null,{"$f":"IF(Cover!C25=\"\",\"[DNSP Name] must provide:\", CONCATENATE(Cover!C25,\" must provide:\"))","v":"AusNet Services must provide:"}]
[]
[null,"Table 4 - Information or reporting systems"]
[null,"   (1) Name of any IT system used to collect fire start data or fault event data - i.e. SCADA system, or fault reporting system"]
[null,"   (2) Whether the fire recording or fault recording process has been audited or complies with a relevant Australian or industry standard - Yes or No"]
[null,"   (3) List any relevant Australian or industry standards that the fire recording or fault recording process complies with"]
[null,"   (4) Whether the data entered into or removed from the IT system has been audited - Yes or No"]
[]
[]
[null,"Table 4: Information or reporting systems"]
[]
[null,"Information or reporting systems","Name","System Audited","Relevant Standards"]
[null,"System 1","Poweron (OMS)","Yes","ISO 9001\nISO55000\nElectricity Safey (Bushfire Mitigation) Regulations\nElectricity Safety (Management) Regulations"]
[null,"System 2","IMS","Yes"]
[null,"System 3 ","Smallworld GIS (SDME) /SAP","Yes"]
[null,"System 4","CFA Website","Unknown"]